Cogmind - Beta 15 @@@ ROGUE MODE // 2025.07.15 @ 00:02:22 Player: f3-rnm Result: Destroyed by G-73 Enforcer with Heavy Laser Performance ------------- Evolutions (9) 4500 Regions Visited (32) 6400 Robots Destroyed (369) 1845 Value Destroyed (23078) 23078 Prototype IDs (52) 1040 Alien Tech Used (3) 600 Bonus (22537) 22537 TOTAL SCORE: 60000 Bonus ------- Triggered High Security 500 High Alert Combat Kills 9182 Follower Combat Kills 3276 Entered Garrisons 600 Used RIF Installer 2000 Network Hubs Disabled 200 Met Data Miner 300 Met Zhirov 300 Met R17 at Cetus 500 Found Hidden Lab 3000 Met R17 at Research 2000 Pursued by Intercept 1000 Friendly Fire -321 Cogmind --------- Core Integrity 0/1600 Matter 300/300 Energy 100/100 System Corruption 15% Temperature Cool (18) Movement Core (50) Location -1/Access Parts ------- > --- POWER (2) -------- (None) > --- PROPULSION (5) --- (None) > --- UTILITY (14) ----- Advanced Targeting Computer Experimental Core Analyzer > --- WEAPON (4) ------- (None) > --- INVENTORY (5) ---- Advanced Energy Well (500) Point Singularity Launcher Improved Plasma Cutter Peak State ------------ > --- POWER ------------ Antimatter-Ion Reactor > --- PROPULSION ------- Myomer-Heavy Exoskeleton > --- UTILITY ---------- Armored Scrap Engine Experimental Heat Sink Huge Storage Unit Spectral Analyzer Experimental Targeting Computer Experimental Core Analyzer Advanced Weapon Cycler Advanced Transmission Jammer Medium Regenerative Plating Advanced Force Field Quantum Router > --- WEAPON ----------- Long-range Missile Launcher Kinetic Hardcell Construct/G KE Hardcell Construct/C > --- INVENTORY -------- Quantum Reactor Compact Wheel Advanced Cryofiber Web Advanced Cooling System Improved Coolant Injector High-capacity Storage Unit Advanced Energy Well Improved Matter Compressor Long-range Sensor Array Experimental Core Analyzer Quantum Capacitor Improved Cloaking Device Advanced Powered Armor Graphene Brace Advanced Force Field Advanced Force Field Long-range Tractor Beam Assault Drone Bay Transdimensional Reconstructor Precision Rocket Launcher Improved Plasma Cutter [Rating: 182] Favorites ----------- Power Constructs Engine Ion Engine Power Core Micro Fission Core Reactor Constructs Propulsion Constructs Treads Light Treads Leg Constructs Wheel Wheel Flight Unit Cesium-ion Thruster Utility Armored Scrap Engine Device Armored Scrap Engine Storage Huge Storage Unit Processor Experimental Core Analyzer Hackware Advanced Hacking Suite Protection Medium Regenerative Plating Weapon Constructs Energy Gun Constructs Energy Cannon Advanced Beam Cannon Ballistic Gun Assault Rifle Ballistic Cannon Constructs Launcher Long-range Missile Launcher Special Weapon Improved Plasma Cutter Piercing Weapon Lance Build | -11 -10 -10 -8 -8 -8 -6 -6 -6 -6 -5 -5 -5 -5 -5 -5 -5 -5 -4 -4 -4 -4 -4 -4 -3 -3 -3 -3 -2 -2 -2 -2 -1 ------- Run | Yrd Mat Sub Mat Sto Rec Fac Low Low Dat Pro Fac Was Fac Ext Cet Arc Hub Fac Gar Fac Upp Upp Zhi Pro Res Arm Lab Res Gar Res Gar Acc Slots Evolved 18 | . . . 4 . . 4 . . . . 2 . . . . . . 2 . . . . . . 2 . . 2 . . . 2 Power 1 | . . . . . . . . . . . 1 . . . . . . . . . . . . . . . . . . . . . Propulsion 3 | . . . 1 . . 2 . . . . . . . . . . . . . . . . . . . . . . . . . . Utility 12 | . . . 2 . . 2 . . . . 1 . . . . . . 2 . . . . . . 1 . . 2 . . . 2 Weapon 2 | . . . 1 . . . . . . . . . . . . . . . . . . . . . 1 . . . . . . . Parts Attached 175 | 6 2 6 1 12 1 28 5 1 . 2 . 1 8 15 1 3 8 4 8 1 3 1 1 1 6 13 2 2 3 12 7 11 Power 15 | 1 . 1 . . . 2 2 . . . . . 2 2 . 1 1 . . . . . . . . . . . . 3 . . Engine 9 | 1 . 1 . . . 2 2 . . . . . . 1 . 1 . . . . . . . . . . . . . 1 . . Core 3 | . . . . . . . . . . . . . 2 1 . . . . . . . . . . . . . . . . . . Reactor 3 | . . . . . . . . . . . . . . . . . 1 . . . . . . . . . . . . 2 . . Propulsion 23 | 2 . 2 . 2 . 8 . . . 1 . . 1 4 . . . 2 . . . . . . . . . . . . . 1 Treads 10 | 2 . 1 . 1 . 5 . . . . . . 1 . . . . . . . . . . . . . . . . . . . Leg 4 | . . . . . . . . . . 1 . . . 2 . . . 1 . . . . . . . . . . . . . . Wheel 8 | . . 1 . 1 . 3 . . . . . . . 2 . . . 1 . . . . . . . . . . . . . . Hover . | . . . . . . . . . . . . . . . . . . . . . . . . . . . . . . . . . Flight 1 | . . . . . . . . . . . . . . . . . . . . . . . . . . . . . . . . 1 Utility 101 | 1 2 . . 3 1 12 1 1 . 1 . 1 5 7 1 2 5 2 8 1 3 1 1 1 5 12 1 2 3 6 6 6 Device 57 | . 1 . . 2 1 7 1 1 . 1 . 1 3 4 . 1 2 1 5 . 3 1 . 1 1 3 . 1 3 5 5 3 Storage 8 | 1 1 . . . . . . . . . . . 2 1 . . . 1 . . . . 1 . . . . . . . 1 . Processor 13 | . . . . . . 4 . . . . . . . . . . 1 . 1 1 . . . . 1 1 . . . 1 . 3 Hackware 15 | . . . . . . 1 . . . . . . . 2 . . 1 . . . . . . . 2 8 . 1 . . . . Protection 8 | . . . . 1 . . . . . . . . . . 1 1 1 . 2 . . . . . 1 . 1 . . . . . Artifact . | . . . . . . . . . . . . . . . . . . . . . . . . . . . . . . . . . Weapon 36 | 2 . 3 1 7 . 6 2 . . . . . . 2 . . 2 . . . . . . . 1 1 1 . . 3 1 4 Energy Gun 8 | . . 1 . 2 . 2 . . . . . . . . . . 1 . . . . . . . . . 1 . . . 1 . Energy Cannon 5 | . . . . 2 . 2 . . . . . . . . . . . . . . . . . . . . . . . . . 1 Ballistic Gun 9 | 2 . 1 . 1 . 2 . . . . . . . 1 . . . . . . . . . . . . . . . 2 . . Ballistic Cannon 5 | . . 1 1 2 . . . . . . . . . . . . . . . . . . . . . . . . . 1 . . Launcher 7 | . . . . . . . 2 . . . . . . . . . 1 . . . . . . . 1 1 . . . . . 2 Special Weapon 1 | . . . . . . . . . . . . . . . . . . . . . . . . . . . . . . . . 1 Impact Weapon . | . . . . . . . . . . . . . . . . . . . . . . . . . . . . . . . . . Slashing Weapon . | . . . . . . . . . . . . . . . . . . . . . . . . . . . . . . . . . Piercing Weapon 1 | . . . . . . . . . . . . . . 1 . . . . . . . . . . . . . . . . . . Special Melee Weapon . | . . . . . . . . . . . . . . . . . . . . . . . . . . . . . . . . . Unidentified Prototypes 28 | . . . . 4 1 3 . . . . . . 1 1 1 . 1 . 2 1 . . 2 . 2 1 3 1 . 2 1 1 Corrupted Parts 2 | . . . . 1 . . . . . . . . . . . . . . . . . . . 1 . . . . . . . . System Corruption 6 | . . . . 4 . . . . . . . . . . . . . . . . . . . 2 . . . . . . . . Parts Lost 91 | . . 4 . 1 1 12 8 6 . . 4 2 . 3 . . 4 . 1 . . . . 1 . 3 . . 1 16 5 19 Power 10 | . . 1 . . . 1 2 . . . . . . . . . 1 . . . . . . . . . . . . 4 . 1 Propulsion 25 | . . 2 . . 1 7 3 2 . . 1 . . 2 . . 1 . . . . . . . . . . . . 1 . 5 Utility 37 | . . . . 1 . 2 2 1 . . 3 2 . . . . 2 . 1 . . . . 1 . . . . 1 6 5 10 Weapon 19 | . . 1 . . . 2 1 3 . . . . . 1 . . . . . . . . . . . 3 . . . 5 . 3 Highest Loss Streak 12 | . . 2 . 1 1 4 3 6 . . 4 2 . 1 . . 2 . 1 . . . . 1 . 1 . . 1 7 3 12 To Critical Strikes 2 | . . . . . . . . . . . . . . 1 . . . . . . . . . . . . . . . 1 . . Average Backups 18 | 1 8 12 13 18 16 16 17 14 5 5 4 4 4 7 22 24 23 21 19 21 24 25 25 24 24 23 22 21 21 21 22 18 Power 1 | . 1 1 1 1 . 1 3 1 . . . . . . 1 1 . . . 1 1 1 1 1 1 1 1 1 1 . 2 1 Propulsion 1 | . 2 1 1 . . . . . . . . . . . 5 5 5 4 2 2 4 3 2 2 2 1 1 1 1 1 1 . Utility 11 | . 3 6 7 8 9 9 10 10 5 5 4 4 4 6 13 15 13 12 14 15 17 18 19 18 17 17 17 16 15 14 12 12 Weapon 2 | . 1 3 4 8 6 5 3 1 . . . . . . 2 3 3 3 2 2 2 2 2 1 2 1 1 1 1 3 4 1 Tool/Special . | . . . . . . . . . . . . . . . . . . . . . . . . . . . . . . . . . Unused Backups 69 | . . . . 4 6 7 3 7 . . . . . 2 . 2 . 7 6 1 . 1 2 1 1 4 . . . 2 4 9 Power 5 | . . . . . 1 . . 1 . . . . . . . 1 . . 1 . . . . . . . . . . . . 1 Propulsion 7 | . . . . . 2 . . . . . . . . . . . . 2 . . . 1 . . . 1 . . . . . 1 Utility 32 | . . . . 1 . 1 . 6 . . . . . 2 . 1 . 2 5 . . . 2 1 1 3 . . . 1 . 6 Weapon 25 | . . . . 3 3 6 3 . . . . . . . . . . 3 . 1 . . . . . . . . . 1 4 1 Tool/Special . | . . . . . . . . . . . . . . . . . . . . . . . . . . . . . . . . . Average Slot Usage (%) 64 | . 95 99 68 92 64 71 61 51 13 20 19 21 34 57 69 64 67 70 63 63 63 63 62 62 61 62 61 66 64 66 61 53 Engine 2 | . 14 13 9 9 8 4 5 5 . . . . . . 2 . 4 . . . . . . . . . . . . . . . Reactor 2 | . . . . . . . . . . . . . . . 3 4 5 10 4 3 . . . . 2 4 4 4 4 3 4 3 Treads 5 | . 28 21 9 9 7 12 10 . . . . 1 2 1 1 3 . . 3 5 2 1 5 5 3 1 . . 1 4 1 1 Leg 1 | . . . . . . . 3 5 . 3 3 2 5 3 4 . . 5 1 . 2 3 . . . . 3 4 2 . 2 2 Wheel 2 | . . 6 9 16 8 6 . . . . . . . 1 5 5 2 . . . . . . . . . . . . . . . Device 20 | . 1 14 9 15 18 17 18 19 6 10 11 11 14 23 17 17 12 20 25 23 23 23 20 21 17 20 21 22 22 29 28 27 Storage 5 | . 22 14 9 9 9 6 6 5 . . . . 1 4 5 5 5 5 5 5 5 5 5 5 4 4 4 4 4 4 4 3 Processor 5 | . . . . . . 3 6 6 6 6 3 . . . . . 2 5 5 7 10 10 10 10 10 14 14 13 13 10 7 7 Hackware 1 | . . . . . . 3 . . . . . . . 4 8 5 5 . . . . . . . 4 . . 2 2 . . . Protection 2 | . . . . 6 1 . . . . . . . . . 2 4 6 10 5 5 2 2 5 4 4 . 1 4 4 1 4 2 Energy Gun 1 | . . 4 . . 1 5 . . . . . . . 2 . 3 2 . . . . . . . . 4 . . . . . . Energy Cannon 1 | . . . . 8 6 3 2 . . . . . . . . . . 1 . 5 5 5 5 5 4 4 2 4 . . . 1 Ballistic Gun 3 | . 28 16 9 5 2 5 . . . . . . . 3 5 1 . . . . . . . . . . 4 4 4 3 . . Ballistic Cannon 4 | . . 6 14 13 1 . 4 5 . . . 3 4 . 3 5 7 8 9 5 5 5 5 5 3 . 1 . 3 5 5 2 Peak Build Rating 182 | 6 8 11 11 26 40 62 61 54 23 31 38 56 92 85 103 105 109 121 145 141 141 141 139 139 159 168 169 180 182 173 171 180 Average Rating 99 | 4 7 9 10 21 33 50 52 50 23 27 29 42 65 70 89 100 102 113 131 139 139 138 137 137 146 157 160 176 173 161 158 145 On Entrance 88 | . 6 8 9 11 26 37 61 52 23 23 31 24 47 79 78 100 105 103 118 139 140 139 137 139 138 157 160 166 175 169 166 146 Naked Turns . | . . . . . . . . . . . . . . . . . . . . . . . . . . . . . . . . . Heaviest Build 210 | 13 53 52 55 69 67 72 72 60 1 2 3 11 105 110 117 121 138 142 130 150 148 138 138 138 138 145 166 168 160 155 170 210 Greatest Support 213 | 40 40 40 16 26 60 55 60 24 3 15 3 72 72 72 129 129 75 117 177 177 177 213 213 213 213 213 205 205 205 205 186 186 Greatest Overweight (x) 11 | . 1 3 3 3 5 5 3 2 . . . 3 3 10 11 1 1 2 . . . . . . . 1 . . . 1 1 1 Average Overweight (x) . | . . 2 3 2 2 2 1 1 . . . . 1 1 9 . 1 1 . . . . . . . . . . . . . . Largest Inventory Capacity 25 | 8 20 20 20 20 20 20 20 20 5 5 5 5 25 25 25 25 25 25 20 25 25 25 25 25 25 25 25 25 25 25 25 25 Average Capacity 21 | 7 16 20 20 20 20 20 20 18 5 5 5 5 8 20 25 25 25 23 20 22 25 25 25 25 25 25 25 25 25 25 25 21 Most Carried 25 | 3 13 13 13 20 20 20 19 16 5 5 5 4 5 16 25 25 25 23 20 25 25 25 25 25 25 25 25 24 24 25 25 25 Average Carried 18 | 1 8 12 13 18 16 16 17 14 5 5 4 4 4 7 22 24 23 21 19 21 24 25 25 24 24 24 24 23 23 23 23 20 Final Capacity 25 | 8 20 20 20 20 20 20 20 5 5 5 5 5 25 25 25 25 25 20 20 25 25 25 25 25 25 25 25 25 25 25 25 5 Final Carried 25 | 3 13 13 13 20 14 19 15 5 5 5 4 4 5 16 25 24 21 19 20 24 25 25 25 25 25 25 25 24 24 25 25 3 Scrap Engine Consumption 434 | . . . . . 37 35 13 . . 3 3 17 7 41 19 13 5 17 42 4 2 1 4 5 12 44 2 2 9 14 55 28 Constructs Created 23 | . . . . . 3 3 2 . . . . 2 . 4 1 . . . . . . . . . . 3 . . . 2 . 3 Constructs Modified 156 | . . . . . 10 7 8 . . . . 3 1 12 7 6 2 8 21 1 3 1 . . 9 12 4 . 5 4 26 6 Class Distribution -------------------- 29% | Construct 23% | Mutant 16% | Scavenger-Construct 11% | Scavenger-Gunner 5% | Scavenger-Mutant 3% | Commander-Construct Dominant Class ---------------- Mutant | -10/Materials Mutant | -10/Subcaves Gunner | -8/Materials Tank | -8/Storage Construct | -8/Recycling Scavenger-Gunner | -6/Factory Mutant | -6/Lower Caves Mutant | -6/Lower Caves Mutant | -6/Data Miner Mutant | -5/Proximity Caves Mutant | -5/Factory Mutant | -5/Waste Mutant | -5/Factory Commander-Mutant | -5/Extension Scavenger-Construct | -5/Cetus Scavenger-Construct | -5/Archives Scavenger-Construct | -5/Hub_04(d) Scavenger-Construct | -4/Factory Construct | -4/Garrison Construct | -4/Factory Construct | -4/Upper Caves Construct | -4/Upper Caves Construct | -4/Zhirov Construct | -3/Proximity Caves Construct | -3/Research Construct | -3/Armory Construct | -3/Lab Hacker-Construct | -2/Research Hacker-Construct | -2/Garrison Scavenger-Gunner | -2/Research Scavenger-Gunner | -2/Garrison Scavenger-Gunner | -1/Access Resources | -11 -10 -10 -8 -8 -8 -6 -6 -6 -6 -5 -5 -5 -5 -5 -5 -5 -5 -4 -4 -4 -4 -4 -4 -3 -3 -3 -3 -2 -2 -2 -2 -1 ----------- Run | Yrd Mat Sub Mat Sto Rec Fac Low Low Dat Pro Fac Was Fac Ext Cet Arc Hub Fac Gar Fac Upp Upp Zhi Pro Res Arm Lab Res Gar Res Gar Acc Matter Collected 11785 | 143 473 260 . 500 237 401 164 26 . 126 . 19 205 379 72 283 608 314 1150 51 38 80 . 166 162 556 . 62 1257 1639 1982 432 Remotely 272 | . . . . . . . . . . . . . . . . . . . . . . . . . . . . . . 272 . . Salvage Created 22174 | . 284 180 . 380 . 1056 458 235 . . . 248 205 618 59 387 687 429 2119 596 324 832 . 731 1022 2247 . 62 2001 2075 3316 1623 Parts 932 | . 26 7 . 29 . 51 19 15 . . . 4 12 22 5 25 39 22 89 24 7 32 . 35 31 107 . 2 59 72 122 76 Haulers Intercepted 8 | . 1 . . 3 . . . . . . . . . . . . 1 . . . . . . . . . . . . 2 . 1 Recyclers Shooed 4 | . . . . 1 . 1 . . . . . . . . . . . . . . . . . . . . . . . 2 . . Parts Field Recycled . | . . . . . . . . . . . . . . . . . . . . . . . . . . . . . . . . . Retrieved Matter . | . . . . . . . . . . . . . . . . . . . . . . . . . . . . . . . . . Parts Self-Destructed 49 | . . 5 . . . . 8 12 . 6 . . . . . . . . . . 1 10 . 7 . . . . . . . . Prevented 54 | . . . . . . . 1 . . . . . . . . . . . . . 6 18 . 29 . . . . . . . . Kills | -11 -10 -10 -8 -8 -8 -6 -6 -6 -6 -5 -5 -5 -5 -5 -5 -5 -5 -4 -4 -4 -4 -4 -4 -3 -3 -3 -3 -2 -2 -2 -2 -1 ------- Run | Yrd Mat Sub Mat Sto Rec Fac Low Low Dat Pro Fac Was Fac Ext Cet Arc Hub Fac Gar Fac Upp Upp Zhi Pro Res Arm Lab Res Gar Res Gar Acc Combat Hostiles Destroyed 321 | . 8 5 . 5 . 21 10 8 . . . 1 3 4 1 1 16 4 25 9 4 11 . 12 8 34 . 1 35 24 48 23 Melee 1 | . . . . . . . . . . . . . . 1 . . . . . . . . . . . . . . . . . . Guns 71 | . 8 4 . 2 . 18 . . . . . . . 3 . . 2 . . . . . . . . 10 . . 11 7 6 . Cannons 187 | . . 1 . 3 . 2 6 1 . . . 1 3 . 1 1 6 3 23 7 2 9 . 9 4 19 . 1 10 17 39 19 AOE 42 | . . . . . . . 4 7 . . . . . . . . 7 . . . . . . . . 3 . . 14 . 3 4 Classes Destroyed 25 | . 5 1 . 3 . 1 2 1 . . . 1 1 . . 1 2 . 1 . . 1 . 1 . 3 . . . . 1 . Worker 8 | . 2 . . 1 . 2 . . . . . . . . . . 1 . . . . . . . . . . . . 2 . . Builder 3 | . . . . 1 . 1 . . . . . . . . . . . . . . . . . . . . . . . . . 1 Tunneler 1 | . . . . . . . . . . . . . 1 . . . . . . . . . . . . . . . . . . . Hauler 8 | . 1 . . 3 . . . . . . . . . . . . 1 . . . . . . . . . . . . 2 . 1 Recycler 11 | . . . . 1 . 1 . . . . . . . 3 . . . 1 . . . . . . 2 . . . . 2 . 1 Operator 10 | . 1 . . . . . . . . . . . . . . 7 . 1 . . . . . . 1 . . . . . . . Watcher 5 | . . . . . . . . . . . . . . . . . 1 . . . . . . . 1 2 . . . 1 . . Swarmer 49 | . 6 . . 3 . 8 . 5 . . . . . 2 . . . . 1 . . . . 3 . . . . 5 . 16 . Cutter 2 | . . . . . . . . . . . . . . . . . . . . . . . . . . . . . . . 2 . Saboteur 3 | . . . . . . . . . . . . . . . . . . . . . . . . . . 3 . . . . . . Grunt 86 | . 2 . . . . 3 3 1 . . . . . 1 . . 4 . 8 2 3 8 . . 4 8 . . 11 2 13 13 Brawler 21 | . . . . . . . 1 1 . . . . . . . . . . 1 1 1 . . . . 1 . . 8 1 5 1 Duelist 4 | . . . . . . . . . . . . . . . . . . . . . . 1 . . . 2 . . . 1 . . Protector 3 | . . . . . . . . . . . . . . . . . 1 . . . . . . 2 . . . . . . . . Sentry 41 | . . . . 2 . 8 1 . . . . . 1 1 . 1 2 . 8 1 . . . 1 1 2 . 1 4 1 5 1 Demolisher 6 | . . . . . . . . . . . . . . . . . . . . . . . . 4 1 1 . . . . . . Specialist 7 | . . . . . . . . . . . . . . . . . . . . . . . . . . 6 . . 1 . . . Hunter 26 | . . . . . . . . . . . . . . . . . 2 2 . 2 . . . 2 1 5 . . 2 8 1 1 Programmer 43 | . . . . . . 2 . 1 . . . . 2 . . . 4 2 . 3 . 2 . . 1 5 . . 3 6 6 6 Heavy 1 | . . . . . . . . . . . . . . . . . . . . . . . . . . 1 . . . . . . Behemoth 9 | . . . . . . . 1 . . . . . . . . . . . 5 . . . . . 1 . . . 1 1 . . Compactor 1 | . . . . . . . . . . . . 1 . . . . . . . . . . . . . . . . . . . . Cetus Guard 1 | . . . . . . . . . . . . . . . 1 . . . . . . . . . . . . . . . . . Lightning 3 | . . . . . . . . . . . . . . . . . 3 . . . . . . . . . . . . . . . Tracker 3 | . . . . . . . . . . . . . . . . . . . . . . . . . . . . . . 2 . 1 Combat Programmer 2 | . . . . . . . . . . . . . . . . . . . . . . . . . . . . . . 2 . . Executioner 2 | . . . . . . . . . . . . . . . . . . . 2 . . . . . . . . . . . . . Subdweller 5 | . . 5 . . . . . . . . . . . . . . . . . . . . . . . . . . . . . . Samaritan 1 | . . . . . . . . 1 . . . . . . . . . . . . . . . . . . . . . . . . Thug 4 | . . . . . . . 4 . . . . . . . . . . . . . . . . . . . . . . . . . Guerrilla 1 | . . . . . . . . . . . . . . . . 1 . . . . . . . . . . . . . . . . Best Kill Streak 14 | . 3 1 . 3 . 5 4 7 . . . 1 2 2 1 4 8 2 4 3 4 4 . 3 3 6 . 1 14 6 7 10 Combat Bots Only 14 | . 3 1 . 2 . 5 4 7 . . . 1 1 2 1 1 8 2 4 3 4 4 . 3 2 6 . 1 14 5 7 7 Max Kills in Single Turn 4 | . 1 1 . 1 . 1 2 1 . . . 1 1 1 1 1 4 1 1 1 1 1 . 1 1 2 . 1 3 2 3 2 Gunslinging . | . . . . . . . . . . . . . . . . . . . . . . . . . . . . . . . . . Exploded 4 | . . . . . . . 2 1 . . . . . . . . 4 . . . . . . . . 2 . . 3 . 3 2 Melee 1 | . . . . . . . . . . . . . . 1 . . . . . . . . . . . . . . . . . . Uniques/NPCs Destroyed . | . . . . . . . . . . . . . . . . . . . . . . . . . . . . . . . . . Combat | -11 -10 -10 -8 -8 -8 -6 -6 -6 -6 -5 -5 -5 -5 -5 -5 -5 -5 -4 -4 -4 -4 -4 -4 -3 -3 -3 -3 -2 -2 -2 -2 -1 -------- Run | Yrd Mat Sub Mat Sto Rec Fac Low Low Dat Pro Fac Was Fac Ext Cet Arc Hub Fac Gar Fac Upp Upp Zhi Pro Res Arm Lab Res Gar Res Gar Acc Hostile Shots Fired 2550 | . 53 36 . 20 7 348 138 53 . 8 43 4 37 67 19 13 74 26 181 38 4 24 . 13 29 221 59 8 100 299 247 381 Missed 766 | . 9 6 . 6 1 117 55 22 . 7 15 . 7 24 8 5 22 5 43 19 2 12 . 4 10 61 28 1 37 66 68 106 Hits 1784 | . 44 30 . 14 6 231 83 31 . 1 28 4 30 43 11 8 52 21 138 19 2 12 . 9 19 160 31 7 63 233 179 275 Melee 20 | . . . . . . . . . . . . 4 . . . . . . . . . . . . . . . . . . 3 13 Projectile 1764 | . 44 30 . 14 6 231 83 31 . 1 28 . 30 43 11 8 52 21 138 19 2 12 . 9 19 160 31 7 63 233 176 262 AOE 16 | . . . . . . . . . . . . . 2 . . . . . . . . . . 6 . 5 . . . . 3 . Critical Strikes 70 | . . . . . . 1 2 1 . . . . . 3 4 1 6 3 6 3 . . . . . 3 1 . . 12 11 13 Actively Blocked 14 | . . . . . . . . . . . . . . . . . . . 5 1 . . . . . . . . . . 4 4 Part Disruptions 3 | . . . . . . . . . . . . . . . . . . 1 . . . . . . . . . . 1 1 . . Damage Taken 32336 | . 413 630 . 184 144 2372 1895 651 . 25 399 162 829 1149 322 240 1263 449 2492 191 16 115 . 189 415 2347 382 184 939 5325 2418 6196 Core 4236 | . 84 120 . . 20 333 290 177 . 25 210 . 227 137 . . 101 44 86 10 . 11 . 38 23 135 48 . 37 372 172 1536 Absorbed by Shields 6351 | . . . . . . . . . . . 28 . . 54 . . . . 1359 200 16 120 . 171 144 463 393 . 599 19 2092 693 Reduced by Siege Mode 99 | . . . . . . . . . . . . . . . . . . . 99 . . . . . . . . . . . . . Ignored by Resistances 115 | . . . . . . . . . . . 115 . . . . . . . . . . . . . . . . . . . . . Regen/Repaired (Parts) 9360 | . . . . . 70 418 138 . . . . . 427 421 274 200 51 577 1351 49 271 . . . 146 710 512 19 1037 710 1629 350 Core Remaining (%) 60 | 100 . 18 . . 96 . . . . 2 . . . . . . 32 . . . . . . 83 . . 96 . . . 59 . Volleys Fired 1180 | . 28 39 . 21 15 78 73 19 . . . 14 22 24 12 32 61 26 120 25 8 25 . 23 30 88 3 8 64 87 179 56 Largest 3 | . 2 2 . 3 3 3 3 2 . . . 1 1 2 2 2 2 2 2 1 2 2 . 2 2 3 1 2 2 3 3 2 Hottest 374 | . 40 83 . 142 130 240 158 60 . . . 83 73 173 96 77 77 125 92 59 75 75 . 75 75 299 49 266 266 374 206 300 Shots Fired 1970 | . 56 78 . 57 23 130 83 20 . . . 14 22 29 15 59 102 45 223 25 12 42 . 43 50 186 3 15 114 188 266 70 Gun 601 | . 56 47 . 12 5 119 6 . . . . . . 29 12 27 17 . . . . . . . 2 81 3 8 54 72 51 . Cannon 1320 | . . 31 . 45 18 11 67 9 . . . 14 22 . 3 32 75 45 223 25 12 42 . 43 48 102 . 7 51 116 214 65 Launcher 49 | . . . . . . . 10 11 . . . . . . . . 10 . . . . . . . . 3 . . 9 . 1 5 Special . | . . . . . . . . . . . . . . . . . . . . . . . . . . . . . . . . . Kinetic 1384 | . 56 60 . 39 18 46 68 9 . . . 13 22 7 15 36 49 12 188 13 4 25 . 22 19 53 3 8 103 188 246 62 Thermal 268 | . . . . 18 5 84 5 . . . . 1 . 22 . 23 17 3 . . . . . . 2 66 . . . . 19 3 Explosive 49 | . . . . . . . 10 11 . . . . . . . . 10 . . . . . . . . 3 . . 9 . 1 5 Electromagnetic 269 | . . 18 . . . . . . . . . . . . . . 26 30 35 12 8 17 . 21 29 64 . 7 2 . . . Robot Hit Streak 37 | . 8 15 . 9 . 19 13 6 . . . 12 10 6 7 7 9 6 37 13 14 9 . 7 8 26 . 4 17 33 21 11 Robot Miss Streak 6 | . 5 3 . 1 1 4 3 1 . . . 1 4 5 2 2 4 3 4 2 4 2 . 3 2 5 . 3 4 4 6 4 Penetration Max 2 | . . . . . . 1 . . . . . . . . 1 1 1 . 1 . . . . . . 1 . . 2 2 1 . Secondary Targets 1 | . . . . . . 1 . . . . . . . . . . . . . . . . . . . . . . . . . . Max Gunslinging Chain 1 | . . . . . . 1 . . . . . . . . . . . . . . . . . . . . . . . . . . Capacitor 3 | . . . . . . . . . . . . . . . . . . . . . . . . . . . . . . . . 3 Shots Hit Robots 1239 | . 28 43 . 29 . 101 54 11 . . . 12 19 28 11 37 45 16 132 19 7 26 . 31 39 133 . 9 80 137 145 47 Core Hits 883 | . 17 14 . 12 . 86 25 19 . . . 5 12 18 5 14 52 5 62 16 5 19 . 29 29 102 1 4 96 97 104 35 Critical Kills 31 | . . . . . . 2 . . . . . . . . 1 4 6 5 2 . . . . . . 1 . . 7 3 . . Critical Parts Destroyed 37 | . . . . . . 2 . . . . . . . . . 8 8 3 3 . . . . . . 2 . 1 5 4 1 . Critical Strikes 111 | . . . . . . 6 . . . . . . . 1 2 12 15 8 19 . 1 1 . 3 3 10 . 2 14 7 7 . Burn 6 | . . . . . . 1 . . . . . . . . . . . . . . . . . . . 5 . . . . . . Destroy 84 | . . . . . . 5 . . . . . . . . 2 12 15 8 14 . . . . . . 4 . 2 14 7 1 . Blast 18 | . . . . . . . . . . . . . . . . . . . 5 . 1 . . 3 2 1 . . . . 6 . Corrupt 2 | . . . . . . . . . . . . . . . . . . . . . . 1 . . 1 . . . . . . . Impale 1 | . . . . . . . . . . . . . . 1 . . . . . . . . . . . . . . . . . . Melee Attacks 7 | . . . . . . . . . . . . . . 7 . . . . . . . . . . . . . . . . . . Impact . | . . . . . . . . . . . . . . . . . . . . . . . . . . . . . . . . . Slashing . | . . . . . . . . . . . . . . . . . . . . . . . . . . . . . . . . . Piercing 7 | . . . . . . . . . . . . . . 7 . . . . . . . . . . . . . . . . . . Sneak Attacks 3 | . . . . . . . . . . . . . . 3 . . . . . . . . . . . . . . . . . . Combat Hostiles . | . . . . . . . . . . . . . . . . . . . . . . . . . . . . . . . . . Follow-up Attacks . | . . . . . . . . . . . . . . . . . . . . . . . . . . . . . . . . . Damage Inflicted 64003 | . 308 762 . 665 . 2280 2761 674 . . . 316 478 925 204 1106 3073 331 7566 1309 499 1526 . 1688 2199 6252 72 323 6832 5810 9030 7014 Guns 11845 | . 308 389 . 145 . 2069 88 . . . . . . 494 146 554 357 . . . . . . . 50 2206 . 176 1701 2098 1064 . Cannons 43249 | . . 306 . 520 . 154 1871 142 . . . 316 478 . 58 552 940 331 7566 1309 499 1526 . 1688 2149 3599 . 147 2326 3712 7684 5376 Explosions 8374 | . . 67 . . . 57 802 532 . . . . . . . . 1776 . . . . . . . . 447 . . 2805 . 282 1606 Melee 430 | . . . . . . . . . . . . . . 430 . . . . . . . . . . . . . . . . . . Ramming 105 | . . . . . . . . . . . . . . 1 . . . . . . . . . . . . 72 . . . . 32 Kinetic 40546 | . 308 483 . 439 . 627 1798 142 . . . 316 478 88 204 633 584 . 6806 503 105 567 . 612 768 1423 . 176 3927 5810 8373 5376 Thermal 5801 | . . 67 . 226 . 1653 161 . . . . . . 406 . 473 357 . . . . . . . 50 2033 . . . . 375 . Explosive 8250 | . . . . . . . 802 532 . . . . . . . . 1776 . . . . . . . . 447 . . 2805 . 282 1606 Electromagnetic 8871 | . . 212 . . . . . . . . . . . . . . 356 331 760 806 394 959 . 1076 1381 2349 . 147 100 . . . Impact . | . . . . . . . . . . . . . . . . . . . . . . . . . . . . . . . . . Slashing . | . . . . . . . . . . . . . . . . . . . . . . . . . . . . . . . . . Piercing 430 | . . . . . . . . . . . . . . 430 . . . . . . . . . . . . . . . . . . Highest Corruption 43 | . 2 2 . 7 7 . . 2 2 2 . . 2 2 2 2 6 . . . . 2 2 4 1 3 8 . 2 25 43 15 Average Corruption 9 | . 2 2 . 6 7 . . 1 2 2 . . 2 2 2 1 4 . . . . 1 2 2 1 1 3 . 1 11 37 3 Corruption Purged 2 | . . . . . . . . . . . . . . . . 2 . . . . . . . . . . . . . . . . Corruption Blocked . | . . . . . . . . . . . . . . . . . . . . . . . . . . . . . . . . . Effects 398 | . 5 17 . 6 56 . . 4 1 3 . . 2 15 7 5 11 . . . . 1 4 9 2 14 6 . 7 44 174 5 Message Errors 74 | . 2 4 . 1 17 . . 1 1 . . . . 7 . 1 . . . . . . 1 3 . 1 2 . 4 5 22 2 Matter Fused 94 | . 1 6 . 3 11 . . 2 . 2 . . 1 3 . 1 3 . . . . . 2 2 1 4 . . . 11 40 1 Heat Flow Errors 46 | . 1 3 . 1 6 . . 1 . . . . 1 1 1 1 1 . . . . 1 . 1 . 1 . . . 4 22 . Energy Discharges 51 | . . 1 . 1 9 . . . . . . . . 1 3 1 4 . . . . . . 1 1 1 2 . 1 5 20 . Parts Rejected 9 | . . . . . 1 . . . . . . . . 1 . 1 . . . . . . . . . . 1 . . 1 4 . Parts Fused 9 | . . . . . 2 . . . . . . . . . 1 . . . . . . . . 1 . . . . . . 5 . Data Loss (minor) 37 | . 1 . . . 4 . . . . . . . . 1 . . . . . . . . . 1 . 1 1 . 1 8 18 1 Data Loss (major) 18 | . . . . . 2 . . . . 1 . . . . 1 . . . . . . . . . . 4 . . . 1 9 . Misfires 12 | . . 3 . . 1 . . . . . . . . . . . . . . . . . . . . 1 . . . 3 4 . Alerts 11 | . . . . . 2 . . . . . . . . 1 1 . . . . . . . 1 . . 1 . . . 1 4 . Misdirections 7 | . . . . . . . . . . . . . . . . . . . . . . . . . . . . . . 1 5 1 Weapon Failures 30 | . . . . . 1 . . . . . . . . . . . 3 . . . . . . . . . . . 1 4 21 . Overload Shots . | . . . . . . . . . . . . . . . . . . . . . . . . . . . . . . . . . Overflow Damage 1999 | . . . . . . . 44 21 . . . . . 112 . 1 24 . . 29 . . . 43 51 33 8 . 10 62 192 1369 Projectiles 1697 | . . . . . . . 44 . . . . . . . . 1 24 . . 29 . . . 43 51 33 . . . 62 187 1223 Explosions 182 | . . . . . . . . 21 . . . . . . . . . . . . . . . . . . . . 10 . 5 146 Melee 120 | . . . . . . . . . . . . . . 112 . . . . . . . . . . . . 8 . . . . . Knockbacks 138 | . . 8 . . . . 1 1 . . . . 2 . . 4 2 . 12 2 . 3 . 1 4 14 2 . 12 34 21 15 Impact 1 | . . . . . . . . . . . . . . . . . . . . . . . . . . . 1 . . . . . Kinetic 129 | . . 8 . . . . 1 1 . . . . 2 . . 4 2 . 11 2 . 3 . 1 4 14 . . 12 30 20 14 Secondary 8 | . . . . . . . . . . . . . . . . . . . 1 . . . . . . . 1 . . 4 1 1 Self-Inflicted Damage 258 | . . . . . . 44 39 82 . . . . . . . . . . . . . . . . . . . . 79 . . 14 Shots 8 | . . . . . . 1 2 4 . . . . . . . . . . . . . . . . . . . . 1 . . . Rammed 9 | . . . . . . . . . . . . . . . . . . . . . . . . . . . . . . . . 9 Targets Rammed 12 | . . . . . . . . . . . . . . 1 . . . . . . . . . . . . 2 . . . . 9 Kicked 3 | . . . . . . . . . . . . . . 1 . . . . . . . . . . . . 2 . . . . . Crushed . | . . . . . . . . . . . . . . . . . . . . . . . . . . . . . . . . . Highest Temperature 496 | . 161 200 . 119 255 160 75 137 . . . 2 146 230 155 221 305 128 147 18 60 114 . 215 32 413 27 278 396 388 262 496 Average Temperature 67 | . 54 76 . 36 95 37 18 71 . . . 1 51 69 34 62 69 36 44 6 27 33 . 29 10 106 16 123 129 109 52 123 Received Heat Transfer 3570 | . 138 156 . 36 21 618 348 117 . 9 198 . 75 183 . 9 45 . 325 21 8 25 . . 32 392 13 27 63 67 203 441 Effects 11 | . . . . . . . . . . . . . . . . . 1 . . . . . . . . 4 . . 3 2 . 1 Shutdowns 1 | . . . . . . . . . . . . . . . . . . . . . . . . . . . . . . . . 1 Energy Bleed 2 | . . . . . . . . . . . . . . . . . . . . . . . . . . 1 . . 1 . . . Interference 7 | . . . . . . . . . . . . . . . . . 1 . . . . . . . . 3 . . 1 2 . . Damage (minor) 1 | . . . . . . . . . . . . . . . . . . . . . . . . . . . . . 1 . . . Siege Activations 1 | . . . . . . . . . . . . . . . . . . . 1 . . . . . . . . . . . . . Total Turns 45 | . . . . . . . . . . . . . . . . . . . 45 . . . . . . . . . . . . . Longest Duration 45 | . . . . . . . . . . . . . . . . . . . 45 . . . . . . . . . . . . . Martial Activations . | . . . . . . . . . . . . . . . . . . . . . . . . . . . . . . . . . Shielding Activations . | . . . . . . . . . . . . . . . . . . . . . . . . . . . . . . . . . Robots Disrupted 1 | . . . . . . . . . . . . . . . . . . . . . . . . . . 1 . . . . . . Combat Hostiles 1 | . . . . . . . . . . . . . . . . . . . . . . . . . . 1 . . . . . . Robots Corrupted 19 | . . . . . . . . . . . . . . . . . 1 1 2 2 2 2 . 3 4 2 . . . . . . Combat Hostiles 19 | . . . . . . . . . . . . . . . . . 1 1 2 2 2 2 . 3 4 2 . . . . . . Parts Fried 69 | . . . . . . . . . . . . . . . . . 2 3 4 7 6 10 . 11 14 11 . . 1 . . . Impact Corruptions 1 | . . . . . . . . . . . . . . . . . . . . . . . . . . . 1 . . . . . Robots Melted 1 | . . . . . . 1 . . . . . . . . . . . . . . . . . . . . . . . . . . Combat Hostiles 1 | . . . . . . 1 . . . . . . . . . . . . . . . . . . . . . . . . . . Parts Melted 15 | . . . . . . 7 3 . . . . . . . . . . . . . . . . . 1 2 . . . . 2 . Heat Transferred 8280 | . . 50 . 407 . 3080 250 . . . . . . . . 555 407 . . . . . . . 50 2334 . . . . 1147 . Parts Sabotaged 3 | . . . . . . . . . . . . . . . . . . . . . . . . . . . . . . . . 3 Parts Stolen . | . . . . . . . . . . . . . . . . . . . . . . . . . . . . . . . . . Parts Stripped . | . . . . . . . . . . . . . . . . . . . . . . . . . . . . . . . . . Power Chain Reactions 1 | . . 1 . . . . . . . . . . . . . . . . . . . . . . . . . . . . . . Alert | -11 -10 -10 -8 -8 -8 -6 -6 -6 -6 -5 -5 -5 -5 -5 -5 -5 -5 -4 -4 -4 -4 -4 -4 -3 -3 -3 -3 -2 -2 -2 -2 -1 ------- Run | Yrd Mat Sub Mat Sto Rec Fac Low Low Dat Pro Fac Was Fac Ext Cet Arc Hub Fac Gar Fac Upp Upp Zhi Pro Res Arm Lab Res Gar Res Gar Acc Maximum Alert Level 5 | . . . . . . 1 . . . . . . . 1 1 . 1 . 5 4 . . . . 1 4 . . 4 4 5 5 Low Security (%) 47 | 100 100 . 100 100 100 82 . . . . 100 100 100 51 82 100 54 100 7 . . . . . 84 24 . 100 7 . . . Level 1 10 | . . . . . . 17 . . . . . . . 48 17 . 45 . 14 . . . . . 15 1 . . 22 . . . Level 2 3 | . . . . . . . . . . . . . . . . . . . 24 . . . . . . 10 . . 1 . . . Level 3 10 | . . . . . . . . . . . . . . . . . . . 12 . . . . . . 56 . . 2 57 8 . Level 4 12 | . . . . . . . . . . . . . . . . . . . 17 100 . . . . . 7 . . 65 42 22 . Level 5 13 | . . . . . . . . . . . . . . . . . . . 23 . . . . . . . . . . . 69 48 High Security 1 | . . . . . . . . . . . . . . . . . . . . . . . . . . . . . . . . 51 Max Security . | . . . . . . . . . . . . . . . . . . . . . . . . . . . . . . . . . Peak Influence 3273 | . 65 . 14 97 21 239 . . . . 80 28 160 305 244 96 398 192 2221 1238 . . . . 230 1136 . 39 1567 1240 3273 2625 Initial 1963 | . . . . . 21 . . . . . . 28 . 53 146 14 . 187 9 1165 . . . . 18 86 . . 21 881 905 1963 Average 661 | . 17 . 2 29 . 77 . . . . 9 2 35 164 138 21 171 78 955 1180 . . . . 135 605 . 11 941 1032 2088 2096 Influence Increases 15807 | . 227 . 14 234 2 726 145 180 . 87 105 . 190 864 303 192 688 155 2222 287 90 265 . 262 404 2012 . 83 1616 964 2478 1012 Destroy 0b10 Robot/C 7480 | . 160 . . 100 . 420 120 160 . 60 . . 60 440 160 80 320 80 500 180 80 220 . 200 160 1020 . 20 780 480 1220 460 Destroy 0b10 Robot/NC 340 | . 20 . . 30 . 20 5 . . . . . 5 35 10 40 25 10 5 . . . . 20 20 15 . . . 35 30 15 Destroy Leader 1182 | . 32 . . 36 . 110 20 20 . 10 . . 20 54 . . 84 20 20 50 10 30 . 20 52 196 . 10 70 146 70 102 Allied During Kill 1068 | . . . . . . . . . . 17 . . . 170 111 15 3 . . . . . . 22 6 434 . . 244 . 46 . Successful Hack 110 | . . . 14 7 . . . . . . . . . 10 . . 16 . 14 . . . . . 21 . . 14 14 . . . Select Force Hacks 50 | . . . . . . . . . . . . . . . . . 50 . . . . . . . . . . . . . . . Disable Machine 615 | . . . . 30 . 60 . . . . . . 75 . . 45 30 15 . 15 . . . . 30 165 . 15 15 90 15 15 Anti-Garrison Action 2250 | . . . . . . . . . . . . . . . . . . . 1450 . . . . . . . . . 50 . 750 . Destroy Structure 1917 | . . . . 1 2 26 . . . . . . 30 50 22 12 160 30 233 12 . . . . 70 152 . 24 428 213 347 105 Partial Spotted 60 | . . . . . . 15 . . . . 15 . . 15 . . . . . . . . . . 15 . . . . . . . Lose Combat Pursuer 735 | . 15 . . 30 . 75 . . . . 90 . . 90 . . . . . 30 . 15 . . 30 30 . . 15 . . 315 Influence Decreases 13202 | . 224 3 14 178 58 509 362 114 66 87 25 80 80 712 530 227 304 525 15 1286 633 336 608 234 268 1194 982 54 78 1324 412 1680 Entered New Map 6257 | . . 3 . . 35 . 82 . 66 . . 52 . 57 116 21 . 197 5 1056 453 130 608 . 10 78 982 . 8 686 302 1310 Time Decay 5180 | . 224 . 14 168 23 394 230 54 . 87 10 28 80 544 294 172 244 328 . 230 180 206 . 224 258 476 . 54 . 478 . 180 Lost Part 770 | . . . . 10 . 115 50 60 . . 15 . . 20 . . 40 . 10 . . . . 10 . 30 . . 10 160 50 190 Lost Ally 695 | . . . . . . . . . . . . . . 91 120 34 20 . . . . . . . . 310 . . 60 . 60 . Purge Threat 300 | . . . . . . . . . . . . . . . . . . . . . . . . . . 300 . . . . . . Squads Dispatched 52 | . 2 . . . . 6 . 1 . . . . 1 1 . . 3 1 . 1 . . . . 3 6 . . . 8 . 19 Investigation 4 | . 1 . . . . 1 . . . . . . . . . . 1 . . . . . . . 1 . . . . . . . Extermination 13 | . . . . . . 2 . . . . . . 1 . . . 1 1 . 1 . . . . . 3 . . . 3 . 1 Reinforcement 8 | . 1 . . . . . . . . . . . . 1 . . 1 . . . . . . . 2 1 . . . 1 . 1 Assault 18 | . . . . . . . . 1 . . . . . . . . . . . . . . . . . 2 . . . 1 . 14 Garrison 3 | . . . . . . 3 . . . . . . . . . . . . . . . . . . . . . . . . . . Intercept 6 | . . . . . . . . . . . . . . . . . . . . . . . . . . . . . . 3 . 3 Searches Triggered . | . . . . . . . . . . . . . . . . . . . . . . . . . . . . . . . . . Construction Impeded . | . . . . . . . . . . . . . . . . . . . . . . . . . . . . . . . . . Haulers Reinforced 2 | . . . . . . . . . . . . . . . . . . . . . . . . . 1 . . . . . . 1 Active Scanning Responses . | . . . . . . . . . . . . . . . . . . . . . . . . . . . . . . . . . Cargo Convoy Interrupts . | . . . . . . . . . . . . . . . . . . . . . . . . . . . . . . . . . Stealth | -11 -10 -10 -8 -8 -8 -6 -6 -6 -6 -5 -5 -5 -5 -5 -5 -5 -5 -4 -4 -4 -4 -4 -4 -3 -3 -3 -3 -2 -2 -2 -2 -1 --------- Run | Yrd Mat Sub Mat Sto Rec Fac Low Low Dat Pro Fac Was Fac Ext Cet Arc Hub Fac Gar Fac Upp Upp Zhi Pro Res Arm Lab Res Gar Res Gar Acc Distress Signals 20 | . 2 . . . 2 . . . . . . . . 1 2 . 2 . . 1 . . . 1 5 1 . . . . . 3 Communications Jammed 91 | . . . . . . . . . . . . . . 4 1 . 6 . . . . . . 7 8 37 . . . 16 . 12 Distress Signals 88 | . . . . . . . . . . . . . . 4 1 . 6 . . . . . . 7 8 34 . . . 16 . 12 Times Spotted 511 | . 18 5 . 13 8 26 9 11 . 4 5 2 3 26 10 9 22 5 26 12 4 12 . 14 21 46 4 2 39 31 55 69 Peak Tracking Total 30 | . 3 1 . 3 1 4 4 7 . 3 5 1 2 10 5 2 10 2 4 4 4 3 . 4 7 7 4 1 11 6 6 30 Tactical Retreats 22 | . 1 1 . 1 . 3 . . . . 2 . . 4 . . . . . 1 . 1 . . 2 2 . . 1 . . 3 Traps | -11 -10 -10 -8 -8 -8 -6 -6 -6 -6 -5 -5 -5 -5 -5 -5 -5 -5 -4 -4 -4 -4 -4 -4 -3 -3 -3 -3 -2 -2 -2 -2 -1 ------- Run | Yrd Mat Sub Mat Sto Rec Fac Low Low Dat Pro Fac Was Fac Ext Cet Arc Hub Fac Gar Fac Upp Upp Zhi Pro Res Arm Lab Res Gar Res Gar Acc Traps Triggered 37 | . 2 . . 3 . 1 . . . . 2 . . 5 . . . . 6 . . . . . 1 . . . . 2 14 1 Indirectly . | . . . . . . . . . . . . . . . . . . . . . . . . . . . . . . . . . Trap Hack Attempts . | . . . . . . . . . . . . . . . . . . . . . . . . . . . . . . . . . Triggered . | . . . . . . . . . . . . . . . . . . . . . . . . . . . . . . . . . Disarmed . | . . . . . . . . . . . . . . . . . . . . . . . . . . . . . . . . . Reprogrammed . | . . . . . . . . . . . . . . . . . . . . . . . . . . . . . . . . . Reused . | . . . . . . . . . . . . . . . . . . . . . . . . . . . . . . . . . Traps Extracted . | . . . . . . . . . . . . . . . . . . . . . . . . . . . . . . . . . Installed . | . . . . . . . . . . . . . . . . . . . . . . . . . . . . . . . . . Triggered . | . . . . . . . . . . . . . . . . . . . . . . . . . . . . . . . . . Machines | -11 -10 -10 -8 -8 -8 -6 -6 -6 -6 -5 -5 -5 -5 -5 -5 -5 -5 -4 -4 -4 -4 -4 -4 -3 -3 -3 -3 -2 -2 -2 -2 -1 ---------- Run | Yrd Mat Sub Mat Sto Rec Fac Low Low Dat Pro Fac Was Fac Ext Cet Arc Hub Fac Gar Fac Upp Upp Zhi Pro Res Arm Lab Res Gar Res Gar Acc Machines Disabled 51 | . . . . 2 . 4 . . . . . . 5 . . 3 2 1 3 1 . . . 3 2 11 1 1 3 6 2 1 Max in Single Turn 5 | . . . . 1 . 1 . . . . . . 5 . . 1 1 1 1 1 . . . 1 1 1 1 1 2 2 1 1 Garrison Access 3 | . . . . . . 2 . . . . . . . . . . . . . . . . . . 1 . . . . . . . Garrison Relay 5 | . . . . . . . . . . . . . . . . . . . 3 . . . . . . . . . . . 2 . Phase Generator 1 | . . . . . . . . . . . . . . . . . . . . . . . . . . . . . 1 . . . Network Hub 1 | . . . . . . . . . . . . . . . . . 1 . . . . . . . . . . . . . . . Machines Repaired . | . . . . . . . . . . . . . . . . . . . . . . . . . . . . . . . . . Machines Dismantled . | . . . . . . . . . . . . . . . . . . . . . . . . . . . . . . . . . Machines Sabotaged 1 | . . . . . . . . . . . . . . . . . 1 . . . . . . . . . . . . . . . Overloaded Fab Kills . | . . . . . . . . . . . . . . . . . . . . . . . . . . . . . . . . . Hacking | -11 -10 -10 -8 -8 -8 -6 -6 -6 -6 -5 -5 -5 -5 -5 -5 -5 -5 -4 -4 -4 -4 -4 -4 -3 -3 -3 -3 -2 -2 -2 -2 -1 --------- Run | Yrd Mat Sub Mat Sto Rec Fac Low Low Dat Pro Fac Was Fac Ext Cet Arc Hub Fac Gar Fac Upp Upp Zhi Pro Res Arm Lab Res Gar Res Gar Acc Machines Accessed 50 | . 1 . 2 2 3 3 . . 4 . . . 1 2 . . 3 2 1 1 . . 4 . 3 6 1 3 2 3 2 1 Terminals 27 | . 1 . 2 2 . . . . . . . . . 2 . . 3 1 1 1 . . . . 3 2 . 2 2 2 2 1 Fabricators 4 | . . . . . . . . . . . . . . . . . . . . . . . . . . 4 . . . . . . Repair Stations . | . . . . . . . . . . . . . . . . . . . . . . . . . . . . . . . . . Recycling Units 2 | . . . . . 2 . . . . . . . . . . . . . . . . . . . . . . . . . . . Scanalyzers . | . . . . . . . . . . . . . . . . . . . . . . . . . . . . . . . . . Garrison Access 7 | . . . . . . 3 . . . . . . 1 . . . . 1 . . . . . . . . . 1 . 1 . . Total Hacks 146 | . 1 . 6 2 7 4 . . 28 . . . 2 3 . . 8 4 3 3 . . 17 . 5 20 3 11 4 4 8 3 Successful 91 | . 1 . 1 2 3 2 . . 28 . . . . 2 . . 3 1 1 1 . . 17 . 2 18 3 3 2 1 . . Failed 55 | . . . 5 . 4 2 . . . . . . 2 1 . . 5 3 2 2 . . . . 3 2 . 8 2 3 8 3 Catastrophic 15 | . . . 2 . 1 1 . . . . . . 1 . . . . 1 1 . . . . . 1 . . 1 . . 5 1 Database Lockouts . | . . . . . . . . . . . . . . . . . . . . . . . . . . . . . . . . . Manual 23 | . 1 . 3 1 4 . . . . . . . . . . . 6 3 . 3 . . . . 1 . . 1 . . . . Terminals 68 | . 1 . 6 2 . . . . . . . . . 3 . . 8 3 3 3 . . . . 5 6 . 10 4 3 8 3 Fabricators 14 | . . . . . . . . . . . . . . . . . . . . . . . . . . 14 . . . . . . Repair Stations . | . . . . . . . . . . . . . . . . . . . . . . . . . . . . . . . . . Recycling Units 5 | . . . . . 5 . . . . . . . . . . . . . . . . . . . . . . . . . . . Scanalyzers . | . . . . . . . . . . . . . . . . . . . . . . . . . . . . . . . . . Garrison Access 9 | . . . . . . 4 . . . . . . 2 . . . . 1 . . . . . . . . . 1 . 1 . . Terminal Hacks 69 | . . . 1 2 2 . . . 28 . . . . 2 . . 2 . 1 1 . . 17 . 2 4 3 2 2 . . . Record 19 | . . . . . . . . . 11 . . . . . . . . . . . . . 5 . . . 3 . . . . . Part Schematic 14 | . . . . . . . . . 10 . . . . . . . . . . . . . 4 . . . . . . . . . Robot Schematic 4 | . . . . . . . . . 4 . . . . . . . . . . . . . . . . . . . . . . . Robot Analysis 4 | . . . . . . . . . . . . . . . . . . . . . . . 4 . . . . . . . . . Prototype ID Bank 8 | . . . . . . . . . 3 . . . . . . . . . . . . . 4 . . . . 1 . . . . Open Door 2 | . . . . 1 . . . . . . . . . . . . . . . . . . . . . . . . 1 . . . Level Access Points 1 | . . . . . . . . . . . . . . . . . 1 . . . . . . . . . . . . . . . Branch Access Points 3 | . . . . 1 . . . . . . . . . . . . . . . 1 . . . . 1 . . . . . . . Emergency Access Points 2 | . . . . . . . . . . . . . . . . . . . 1 . . . . . . . . . 1 . . . Alert Level 3 | . . . . . . . . . . . . . . . . . . . . . . . . . . 2 . 1 . . . . Unreport Threat 2 | . . . . . . . . . . . . . . . . . . . . . . . . . . 2 . . . . . . Patrol Status 1 | . . . . . . . . . . . . . . . . . 1 . . . . . . . . . . . . . . . Hauler Manifests 1 | . . . 1 . . . . . . . . . . . . . . . . . . . . . . . . . . . . . Zone Layout 3 | . . . . . . . . . . . . . . 2 . . . . . . . . . . 1 . . . . . . . Release Object 2 | . . . . . 2 . . . . . . . . . . . . . . . . . . . . . . . . . . . Fabricator Hacks 14 | . . . . . . . . . . . . . . . . . . . . . . . . . . 14 . . . . . . Load Schematic 7 | . . . . . . . . . . . . . . . . . . . . . . . . . . 7 . . . . . . Build 7 | . . . . . . . . . . . . . . . . . . . . . . . . . . 7 . . . . . . Repair Station Hacks . | . . . . . . . . . . . . . . . . . . . . . . . . . . . . . . . . . Recycling Unit Hacks 1 | . . . . . 1 . . . . . . . . . . . . . . . . . . . . . . . . . . . Retrieve Components 1 | . . . . . 1 . . . . . . . . . . . . . . . . . . . . . . . . . . . Scanalyzer . | . . . . . . . . . . . . . . . . . . . . . . . . . . . . . . . . . Garrison Access Hacks 5 | . . . . . . 2 . . . . . . . . . . . 1 . . . . . . . . . 1 . 1 . . Unlock Access 3 | . . . . . . . . . . . . . . . . . . 1 . . . . . . . . . 1 . 1 . . Seal Access 2 | . . . . . . 2 . . . . . . . . . . . . . . . . . . . . . . . . . . Unauthorized Hacks 2 | . 1 . . . . . . . . . . . . . . . 1 . . . . . . . . . . . . . . . Terminals 2 | . 1 . . . . . . . . . . . . . . . 1 . . . . . . . . . . . . . . . Assimilate 1 | . 1 . . . . . . . . . . . . . . . . . . . . . . . . . . . . . . . Sabotage 1 | . . . . . . . . . . . . . . . . . 1 . . . . . . . . . . . . . . . Fabricators . | . . . . . . . . . . . . . . . . . . . . . . . . . . . . . . . . . Repair Stations . | . . . . . . . . . . . . . . . . . . . . . . . . . . . . . . . . . Recycling Units . | . . . . . . . . . . . . . . . . . . . . . . . . . . . . . . . . . Scanalyzers . | . . . . . . . . . . . . . . . . . . . . . . . . . . . . . . . . . Garrison Access . | . . . . . . . . . . . . . . . . . . . . . . . . . . . . . . . . . Data Cores Recovered 2 | . 1 . . . . . . . . . . . . . . . . . . . . . . . 1 . . . . . . . Used . | . . . . . . . . . . . . . . . . . . . . . . . . . . . . . . . . . Hacking Detections 20 | . . . 2 2 1 1 . . . . . . 1 . . . 1 1 1 . . . . . 2 2 . 1 . 3 2 . Full Trace Events 3 | . . . 1 . . . . . . . . . . . . . . . . . . . . . . . . . . . 2 . Feedback Events . | . . . . . . . . . . . . . . . . . . . . . . . . . . . . . . . . . Feedback Blocked . | . . . . . . . . . . . . . . . . . . . . . . . . . . . . . . . . . Robot Schematics Acquired 4 | . . . . . . . . . 4 . . . . . . . . . . . . . . . . . . . . . . . Robots Built 12 | . . . . . . . . . . . . . . . . . . . . . . . . . . 12 . . . . . . Authchips 6 | . . . . . . . . . . . . . . . . . . . . . . . . . . 6 . . . . . . Time 506 | . . . . . . . . . . . . . . . . . . . . . . . . . . 506 . . . . . . Total Robot Build Rating 60 | . . . . . . . . . . . . . . . . . . . . . . . . . . 60 . . . . . . Part Schematics Acquired 14 | . . . . . . . . . 10 . . . . . . . . . . . . . 4 . . . . . . . . . Parts Built 1 | . . . . . . . . . . . . . . . . . . . . . . . . . . 1 . . . . . . Authchips 1 | . . . . . . . . . . . . . . . . . . . . . . . . . . 1 . . . . . . Time 62 | . . . . . . . . . . . . . . . . . . . . . . . . . . 62 . . . . . . Total Part Build Rating 7 | . . . . . . . . . . . . . . . . . . . . . . . . . . 7 . . . . . . Parts Repaired . | . . . . . . . . . . . . . . . . . . . . . . . . . . . . . . . . . Time . | . . . . . . . . . . . . . . . . . . . . . . . . . . . . . . . . . Parts Recycled . | . . . . . . . . . . . . . . . . . . . . . . . . . . . . . . . . . Recycled Matter . | . . . . . . . . . . . . . . . . . . . . . . . . . . . . . . . . . Retrieved Matter . | . . . . . . . . . . . . . . . . . . . . . . . . . . . . . . . . . Retrieved Components 3 | . . . . . 3 . . . . . . . . . . . . . . . . . . . . . . . . . . . Parts Scanalyzed . | . . . . . . . . . . . . . . . . . . . . . . . . . . . . . . . . . Part Schematics Acquired . | . . . . . . . . . . . . . . . . . . . . . . . . . . . . . . . . . Parts Damaged . | . . . . . . . . . . . . . . . . . . . . . . . . . . . . . . . . . Bothacking | -11 -10 -10 -8 -8 -8 -6 -6 -6 -6 -5 -5 -5 -5 -5 -5 -5 -5 -4 -4 -4 -4 -4 -4 -3 -3 -3 -3 -2 -2 -2 -2 -1 ------------ Run | Yrd Mat Sub Mat Sto Rec Fac Low Low Dat Pro Fac Was Fac Ext Cet Arc Hub Fac Gar Fac Upp Upp Zhi Pro Res Arm Lab Res Gar Res Gar Acc Used RIF Installer 4 | . . . . . . . . . . . . . . . . . . . 1 . . . . . . . . . 1 . 2 . Watcher Feeds 1 | . . . . . . . . . . . . . . . . . . . . . . . . . . . . . 1 . . . Structural Interface 1 | . . . . . . . . . . . . . . . . . . . . . . . . . . . . . . . 1 . Program Shield 1 | . . . . . . . . . . . . . . . . . . . . . . . . . . . . . . . 1 . Robots Hacked . | . . . . . . . . . . . . . . . . . . . . . . . . . . . . . . . . . Non-combat . | . . . . . . . . . . . . . . . . . . . . . . . . . . . . . . . . . Combat . | . . . . . . . . . . . . . . . . . . . . . . . . . . . . . . . . . Robot Hacks Applied . | . . . . . . . . . . . . . . . . . . . . . . . . . . . . . . . . . Relay Couplers Released 23 | . . . . . . . . . . . . . . . . . . . 13 . . . . . 2 . . . . . 8 . Machine Destruction 23 | . . . . . . . . . . . . . . . . . . . 13 . . . . . 2 . . . . . 8 . Fabnet Peak Effective % . | . . . . . . . . . . . . . . . . . . . . . . . . . . . . . . . . . Robots Rewired 19 | . . . . . . . . . . . . . . 9 . . . . . . . . . 2 . 6 . . 2 . . . Allies Hacked . | . . . . . . . . . . . . . . . . . . . . . . . . . . . . . . . . . Hacks Repelled . | . . . . . . . . . . . . . . . . . . . . . . . . . . . . . . . . . Allies | -11 -10 -10 -8 -8 -8 -6 -6 -6 -6 -5 -5 -5 -5 -5 -5 -5 -5 -4 -4 -4 -4 -4 -4 -3 -3 -3 -3 -2 -2 -2 -2 -1 -------- Run | Yrd Mat Sub Mat Sto Rec Fac Low Low Dat Pro Fac Was Fac Ext Cet Arc Hub Fac Gar Fac Upp Upp Zhi Pro Res Arm Lab Res Gar Res Gar Acc Total Allies 44 | . . . . . . . . . . 1 . . . 18 . . . . . . . . . 2 . 18 . . 3 . 2 . Largest Group 11 | . . . . . . . . . . 1 . . . 11 11 4 1 . . . . . . 2 2 8 . . 3 . 2 . Highest-Rated Group 372 | . . . . . . . . . . 96 . . . 372 372 130 39 . . . . . . 98 98 328 . . 235 . 190 . Highest-Rated Ally 159 | . . . . . . . . . . 96 . . . 159 39 39 39 . . . . . . 49 49 64 . . 99 . 95 . Total Orders 14 | . . . . . . . . . . . . . . . . . . . . . . 1 . . . 4 . . . . 9 . RETURN 14 | . . . . . . . . . . . . . . . . . . . . . . 1 . . . 4 . . . . 9 . Ally Attacks 516 | . . . . . . . . . . 19 . . . 129 54 10 15 . . . . . . 19 6 112 . . 27 . 125 . Total Damage 12905 | . . . . . . . . . . 629 . . . 2988 750 182 156 . . . . . . 834 176 3642 . . 998 . 2550 . Kills 80 | . . . . . . . . . . 3 . . . 23 10 4 2 . . . . . . 3 . 18 . . 4 . 13 . Allies Corrupted 1 | . . . . . . . . . . . . . . . . . . . . . . . . . . 1 . . . . . . Allies Melted 3 | . . . . . . . . . . . . . . . . . . . 2 . . . . . . 1 . . . . . . Intel | -11 -10 -10 -8 -8 -8 -6 -6 -6 -6 -5 -5 -5 -5 -5 -5 -5 -5 -4 -4 -4 -4 -4 -4 -3 -3 -3 -3 -2 -2 -2 -2 -1 ------- Run | Yrd Mat Sub Mat Sto Rec Fac Low Low Dat Pro Fac Was Fac Ext Cet Arc Hub Fac Gar Fac Upp Upp Zhi Pro Res Arm Lab Res Gar Res Gar Acc Active Infowar (turns) 14111 | . . . . . . 442 957 128 . . . . 11 574 454 533 211 799 542 . 373 426 169 633 591 1709 377 165 758 937 2697 625 Optics 3175 | . . . . . . . . . . . . . . . . . . . . . . . . . 142 1709 377 165 758 24 . . Sensors 2793 | . . . . . . . . . . . . . . . . . . . . . 373 226 . 167 353 1265 . . . 409 . . IFF 128 | . . . . . . . . 128 . . . . . . . . . . . . . . . . . . . . . . . . Seismic 2113 | . . . . . . 122 639 . . . . . 11 . . . . 799 542 . . . . . . . . . . . . . Machine Analysis 116 | . . . . . . 116 . . . . . . . . . . . . . . . . . . . . . . . . . . Cloaking 652 | . . . . . . . . . . . . . . . . . . . . . . . . . . . . 165 169 . . 318 Jamming 10669 | . . . . . . 204 752 . . . . . . 574 454 533 211 . . . . 200 169 633 587 1706 269 . 139 916 2697 625 Robot Analysis Total 4 | . . . . . . . . . . . . . . . . . . . . . . . 4 . . . . . . . . . Derelict Logs Recovered 5 | . . . . . . . 2 . . 1 . . . . . . . . . . 1 1 . . . . . . . . . . Drone Launches 21 | . . . . . . . . . . . . . . . . . . . . . 3 . . . . 4 . . . . 14 . Drone Recoveries 17 | . . . . . . . . . . . . . . . . . . . . . . . . . . 4 . . . . 13 . Exploration | -11 -10 -10 -8 -8 -8 -6 -6 -6 -6 -5 -5 -5 -5 -5 -5 -5 -5 -4 -4 -4 -4 -4 -4 -3 -3 -3 -3 -2 -2 -2 -2 -1 ------------- Run | Yrd Mat Sub Mat Sto Rec Fac Low Low Dat Pro Fac Was Fac Ext Cet Arc Hub Fac Gar Fac Upp Upp Zhi Pro Res Arm Lab Res Gar Res Gar Acc Turns Passed 26751 | 62 789 1379 122 628 1815 1277 1260 454 41 296 211 457 496 1824 641 537 674 800 2608 497 373 428 169 633 591 1709 377 165 758 1235 2697 748 Spaces Moved 14532 | 35 322 648 84 381 1069 623 463 227 81 524 330 310 251 898 254 149 254 351 1296 248 294 382 162 569 419 788 296 128 474 582 1076 564 Core 1571 | 4 . . . . . . . 56 81 522 330 109 192 72 . . . . . . . . . . . . . . . . . 205 Treads 5750 | 31 322 275 . . 251 240 251 . . . . 60 . 112 34 100 . . 923 248 77 105 162 569 367 345 32 . 92 582 328 244 Legs 3641 | . . . . . . . 211 171 . 2 . 141 59 359 . . . 240 373 . 210 277 . . . 11 264 128 382 . 698 115 Wheels 2419 | . . 373 84 381 818 383 1 . . . . . . 159 220 . . . . . . . . . . . . . . . . . Hover 1101 | . . . . . . . . . . . . . . 196 . 49 254 111 . . 7 . . . 52 432 . . . . . . Flight 50 | . . . . . . . . . . . . . . . . . . . . . . . . . . . . . . . 50 . Fastest Speed 50 | 50 160 145 145 120 97 95 125 50 50 50 50 50 142 50 221 198 193 120 120 183 97 97 97 97 80 80 110 110 96 166 113 50 Average Speed 149 | 147 207 185 145 124 142 153 203 180 50 50 50 105 170 178 233 236 195 195 176 183 119 97 97 97 95 141 117 110 120 168 196 101 Slowest Speed 540 | 160 240 240 145 145 320 345 240 225 50 120 50 200 215 540 245 294 198 266 183 183 183 97 97 97 97 231 180 110 166 257 272 165 Overloaded Moves . | . . . . . . . . . . . . . . . . . . . . . . . . . . . . . . . . . Propulsion Burnouts . | . . . . . . . . . . . . . . . . . . . . . . . . . . . . . . . . . Robots Hopped . | . . . . . . . . . . . . . . . . . . . . . . . . . . . . . . . . . Potential Cave-ins . | . . . . . . . . . . . . . . . . . . . . . . . . . . . . . . . . . Cave-ins Triggered . | . . . . . . . . . . . . . . . . . . . . . . . . . . . . . . . . . Teleports 2 | . . . . . . . . . . . . . . . . . . . . . . . . . . 1 . . . . . 1 Exploration Rate (%) 46 | 4 60 35 6 53 93 15 60 43 69 58 6 88 7 85 62 81 31 9 88 9 56 63 60 46 14 39 95 5 78 15 92 19 Regions Visited 32 Branch Regions 17 Pre-discovered Areas 6 | . . . . . . . . . 1 . . . . . . . . . . . 1 1 3 . . . . . . . . . Known Exits Taken 9 | . . . . 1 . 1 . . . . . . 1 . . . 1 1 . 1 . . . . 1 . . 1 . 1 . . Unknown Exits Taken 18 | 1 1 1 1 . 1 . 1 1 1 1 . . . 1 1 1 . . . . 1 1 1 1 . 1 1 . . . . . Scrap Searched 11 | . . . . . . . 4 2 . 1 . . . . . . . . . . 3 1 . . . . . . . . . . Spaces Dug 61 | . . . . . 1 1 2 3 . . . . . 2 . . 5 8 1 4 . 2 . . 1 3 . 1 6 . 19 2 Terrain Destroyed 922 | . . 3 . 1 2 29 59 40 . . . . 14 2 . 3 98 16 45 6 2 15 . 2 7 93 . 12 237 68 121 47 Melee 1 | . . . . . . . . . . . . . . 1 . . . . . . . . . . . . . . . . . . Projectile 485 | . . . . 1 2 5 28 . . . . . . 1 . 3 19 16 45 6 2 15 . 2 7 33 . 12 105 68 102 13 AOE 436 | . . 3 . . . 24 31 40 . . . . 14 . . . 79 . . . . . . . . 60 . . 132 . 19 34 Terrain Rammed . | . . . . . . . . . . . . . . . . . . . . . . . . . . . . . . . . . Walls Destroyed . | . . . . . . . . . . . . . . . . . . . . . . . . . . . . . . . . . Machines Disabled . | . . . . . . . . . . . . . . . . . . . . . . . . . . . . . . . . . Actions | -11 -10 -10 -8 -8 -8 -6 -6 -6 -6 -5 -5 -5 -5 -5 -5 -5 -5 -4 -4 -4 -4 -4 -4 -3 -3 -3 -3 -2 -2 -2 -2 -1 --------- Run | Yrd Mat Sub Mat Sto Rec Fac Low Low Dat Pro Fac Was Fac Ext Cet Arc Hub Fac Gar Fac Upp Upp Zhi Pro Res Arm Lab Res Gar Res Gar Acc Total 18167 | 43 394 752 84 497 1350 803 708 253 80 555 376 425 300 1093 291 278 332 439 1493 280 307 415 176 624 583 1290 323 141 580 746 1475 681 Wait 1587 | . 31 56 . 46 251 37 149 . . 30 34 101 17 28 7 88 2 35 36 . . 4 1 4 115 300 2 1 17 27 156 12 Move 14504 | 34 321 647 83 380 1068 622 462 226 80 523 330 309 250 897 253 148 253 351 1294 247 293 381 161 568 418 787 296 128 473 582 1075 564 Hop . | . . . . . . . . . . . . . . . . . . . . . . . . . . . . . . . . . Pick Up 176 | 3 11 4 . 15 . 17 3 . . . . . 2 15 11 2 3 10 11 5 2 1 3 3 3 16 4 . 2 14 7 9 Fast Attach 98 | 6 . . 1 7 2 18 . 1 . 2 . 1 7 12 . 3 1 . 3 . . . 4 . 3 2 8 . . 7 5 5 Attach 83 | . 2 4 . 1 . 5 7 2 . . 1 . 1 2 2 1 5 3 4 . . . . 1 4 12 1 2 2 9 6 6 Detach 30 | . 1 . . . . 2 5 1 . . . . . 5 2 . 1 1 3 . . . . . 2 1 . 1 1 1 1 2 Swap 72 | . . 2 . 5 . 6 1 . . . . . . 3 . . 3 3 3 2 3 3 1 4 3 7 . 1 5 9 4 4 Drop 176 | . . . . 14 14 18 8 4 . . . . 1 12 4 4 3 10 15 1 1 1 6 2 5 13 8 . 1 7 10 14 Fire 1180 | . 28 39 . 21 15 78 73 19 . . . 14 22 24 12 32 61 26 120 25 8 25 . 23 30 88 3 8 64 87 179 56 Melee 7 | . . . . . . . . . . . . . . 7 . . . . . . . . . . . . . . . . . . Ram 10 | . . . . . . . . . . . . . . . . . . . . . . . . . . . . . . 1 . 9 Kick 2 | . . . . . . . . . . . . . . 1 . . . . . . . . . . . . 1 . . . . . Crush . | . . . . . . . . . . . . . . . . . . . . . . . . . . . . . . . . . Escape Stasis 110 | . . . . 8 . . . . . . 11 . . 52 . . . . 4 . . . . . . . . . 1 2 32 . Rewire 132 | . . . . . . . . . . . . . . 35 . . . . . . . . . 19 . 64 . . 14 . . . Trap . | . . . . . . . . . . . . . . . . . . . . . . . . . . . . . . . . . Miscellaneous . | . . . . . . . . . . . . . . . . . . . . . . . . . . . . . . . . . Route ------- -11/Scrapyard -10/Materials (discovered 3 exits: [*Mat] / [*Min] / [*Sub]) -10/Subcaves (discovered 2 exits: *Mat x2) -8/Materials -8/Storage -8/Recycling -6/Factory -6/Lower Caves -6/Lower Caves -6/Data Miner -5/Proximity Caves -5/Factory (discovered 2 exits: *Fac / Ext) -5/Waste -5/Factory (discovered 2 exits: [*Upp] / *Ext) -5/Extension (discovered 2 exits: *Fac / *Cet) -5/Cetus (discovered 2 exits: *Fac / [*Arc]) -5/Archives (discovered 3 exits: *Fac / *Hub x2) -5/Hub_04(d) (discovered 4 exits: *Fac x4) -4/Factory -4/Garrison (discovered 3 exits: *Fac x3) -4/Factory (discovered 2 exits: *Upp x2) -4/Upper Caves -4/Upper Caves (discovered 2 exits: *Res / *Zhi) -4/Zhirov -3/Proximity Caves -3/Research (discovered 3 exits: *Arm / Qua x2) -3/Armory -3/Lab -2/Research -2/Garrison (discovered 2 exits: *Res x2) -2/Research -2/Garrison (discovered 3 exits: *Acc x3) -1/Access History --------- Turn | Location | Event 38 | -11/Scrapyard | Discovered new exit (range 15) 63 | -11/Scrapyard | Entered Materials 331 | -10/Materials | Build established: Mutant 352 | -10/Materials | Discovered new exit (range 16) 538 | -10/Materials | Discovered new exit (range 12) 782 | -10/Materials | Discovered new exit (range 8) 852 | -10/Materials | Entered Subcaves 853 | -10/Subcaves | Approached by a straggling Scientist 1056 | -10/Subcaves | Shifting Twisted Machinery released Riot Gun 1056 | -10/Subcaves | Shifting Twisted Machinery released Battle Cannon 1139 | -10/Subcaves | Discovered new exit (range 8) 1716 | -10/Subcaves | Core integrity fell below 50% 1796 | -10/Subcaves | Shifting Twisted Machinery released Riot Gun 1850 | -10/Subcaves | Discovered new exit (range 6) 1874 | -10/Subcaves | Core integrity fell below 20% 1964 | -10/Subcaves | Shifting Twisted Machinery released Barrage Gun 2231 | -10/Subcaves | Entered Materials 2231 | -8/Materials | Evolved 4 slots: Propulsion x1, Utility x2, Weapon x1 2231 | -8/Materials | Discovered new exit (range 7) 2353 | -8/Materials | Entered Storage 2381 | -8/Storage | Met 01-MTF 2452 | -8/Storage | Identified exit to Recycling 2781 | -8/Storage | Build established: Tank 2976 | -8/Storage | Used back door to open Recycling access 2981 | -8/Storage | Entered Recycling 2981 | -8/Recycling | Accompanied by 1 ally (01-MTF) 3103 | -8/Recycling | Discovered new exit (range 7) 3213 | -8/Recycling | Build established: Scavenger-Tank 3245 | -8/Recycling | Entered Scraplab 3265 | -8/Recycling | Found Prototype Device 3265 | -8/Recycling | Identified Scrap Engine 3558 | -8/Recycling | Build established: Mutant 4256 | -8/Recycling | Build established: Construct 4796 | -8/Recycling | Entered Factory 4796 | -6/Factory | Evolved 4 slots: Propulsion x2, Utility x2 4869 | -6/Factory | Garrison activated, responded to threat 4935 | -6/Factory | Lost 4 parts (2n1u1w) 5060 | -6/Factory | Lost 3 parts (1p1n1w) 5332 | -6/Factory | Build established: Scavenger-Mutant 5629 | -6/Factory | Discovered new exit (range 15) 5794 | -6/Factory | Build established: Scavenger-Gunner 6070 | -6/Factory | Identified exit to Lower Caves 6073 | -6/Factory | Entered Lower Caves 6075 | -6/Lower Caves | Attracted the attention of an 0b10 checkpoint 6535 | -6/Lower Caves | Ambushed by wild Derelicts 6691 | -6/Lower Caves | Build established: Mutant 6763 | -6/Lower Caves | Learned Factory security intel 6831 | -6/Lower Caves | Spotted B-75 Beast 6838 | -6/Lower Caves | Core integrity fell below 50% 6898 | -6/Lower Caves | Lost 3 parts (1p1n1u) 6914 | -6/Lower Caves | Destroyed B-75 Beast 7080 | -6/Lower Caves | Lost 3 parts (1p1u1w) 7238 | -6/Lower Caves | Encountered a Warlord checkpoint 7315 | -6/Lower Caves | Discovered new exit (range 8) 7333 | -6/Lower Caves | Entered another Lower Caves area 7334 | -6/Lower Caves | Encountered a Warlord checkpoint 7731 | -6/Lower Caves | Core integrity fell below 20% 7747 | -6/Lower Caves | Attracted the attention of an 0b10 outpost 7771 | -6/Lower Caves | Destroyed 7 combat bots 7783 | -6/Lower Caves | Discovered new exit (range 5) 7787 | -6/Lower Caves | Entered Data Miner 7787 | -6/Data Miner | Discovered new exit (range 6) 7796 | -6/Data Miner | Lost 6 parts (2n1u3w) 7797 | -6/Data Miner | Met Data Miner 7806 | -6/Data Miner | Learned location of Section 7 (-2) 7806 | -6/Data Miner | Acquired the access code to Warlord's prototype stash 7815 | -6/Data Miner | Received God Mode back door access code from Data Miner 7828 | -6/Data Miner | Entered Proximity Caves 7877 | -5/Proximity Caves | Escorted by Enhanced Grunt 8007 | -5/Proximity Caves | Learned 4 Factory zone layouts 8083 | -5/Proximity Caves | Attracted the attention of an 0b10 checkpoint 8119 | -5/Proximity Caves | Discovered new exit (range 10) 8124 | -5/Proximity Caves | Entered Factory 8124 | -5/Factory | Evolved 2 slots: Power x1, Utility x1 8125 | -5/Factory | Identified exit to Extension 8310 | -5/Factory | Lost 4 parts (1n3u) 8315 | -5/Factory | Discovered new exit (range 12) 8335 | -5/Factory | Sucked down chute 8335 | -5/Factory | Entered Waste 8335 | -5/Waste | The area was eerily silent 8537 | -5/Waste | Discovered new exit (range 16) 8635 | -5/Waste | A Compactor rumbled back to life 8650 | -5/Waste | Spotted C-40 Crusher 8729 | -5/Waste | Destroyed C-40 Crusher 8755 | -5/Waste | A Compactor rumbled back to life 8755 | -5/Waste | Spotted C-40 Crusher 8767 | -5/Waste | Crushed by Compactor (1 part destroyed) 8781 | -5/Waste | Crushed by Compactor (1 part destroyed) 8792 | -5/Waste | Entered Factory 8869 | -5/Factory | Discovered new exit (range 15) 9087 | -5/Factory | Discovered exit to Extension (range 3) 9288 | -5/Factory | Entered Extension 9360 | -5/Extension | Rescued a captive Derelict 9428 | -5/Extension | Rescued a captive Derelict 9429 | -5/Extension | Rescued a captive Derelict 9514 | -5/Extension | Rescued A7 9671 | -5/Extension | Build established: Scavenger-Mutant 9725 | -5/Extension | Rescued a captive Derelict 10023 | -5/Extension | Build established: Construct 10263 | -5/Extension | Spotted B-75 Beast 10281 | -5/Extension | Spotted B-75 Beast 10285 | -5/Extension | Allies destroyed B-75 Beast 10297 | -5/Extension | Extracted ID and sensor layout for unrecognized location from A7's data core 10302 | -5/Extension | Core integrity fell below 50% 10326 | -5/Extension | Lost 4 allies 10388 | -5/Extension | Rescued a captive Derelict 10390 | -5/Extension | Rescued a captive Derelict 10805 | -5/Extension | Build established: Commander-Mutant 10951 | -5/Extension | Rescued a captive Derelict 10953 | -5/Extension | Rescued a captive Derelict 11020 | -5/Extension | Discovered new exit (range 10) 11022 | -5/Extension | Discovered new exit (range 6) 11112 | -5/Extension | Entered Cetus 11112 | -5/Cetus | Accompanied by 11 allies 11141 | -5/Cetus | Spotted Cetus Guard 11141 | -5/Cetus | Spotted Cetus Guard 11152 | -5/Cetus | Spotted Cetus Guard 11153 | -5/Cetus | Allies destroyed Cetus Guard 11153 | -5/Cetus | Allies destroyed Cetus Guard 11154 | -5/Cetus | Spotted Cetus Guard 11160 | -5/Cetus | Allies destroyed Cetus Guard 11163 | -5/Cetus | Allies destroyed Cetus Guard 11213 | -5/Cetus | Lost 3 allies 11412 | -5/Cetus | Discovered new exit (range 15) 11459 | -5/Cetus | Spotted Cetus Guard 11459 | -5/Cetus | Spotted Cetus Guard 11460 | -5/Cetus | Spotted Cetus Guard 11461 | -5/Cetus | Destroyed Cetus Guard 11463 | -5/Cetus | Allies destroyed Cetus Guard 11467 | -5/Cetus | Spotted Cetus Guard 11484 | -5/Cetus | Allies destroyed Cetus Guard 11490 | -5/Cetus | Allies destroyed Cetus Guard 11494 | -5/Cetus | Discovered new exit (range 16) 11510 | -5/Cetus | Lost 4 allies 11510 | -5/Cetus | Met Revision 17 11753 | -5/Cetus | Entered Archives 11753 | -5/Archives | Accompanied by 4 allies 11781 | -5/Archives | Build established: Scavenger-Construct 11825 | -5/Archives | Discovered new exit (range 16) 11862 | -5/Archives | Discovered new exit (range 14) 12119 | -5/Archives | Discovered new exit (range 15) 12290 | -5/Archives | Entered Hub_04(d) 12290 | -5/Hub_04(d) | Accompanied by 1 ally 12608 | -5/Hub_04(d) | Identified exit to Factory 12608 | -5/Hub_04(d) | Network Hub disabled 12659 | -5/Hub_04(d) | Spotted Lightning 12661 | -5/Hub_04(d) | Spotted Lightning 12675 | -5/Hub_04(d) | Destroyed Lightning 12680 | -5/Hub_04(d) | Destroyed Lightning 12682 | -5/Hub_04(d) | Spotted Lightning 12684 | -5/Hub_04(d) | Destroyed Lightning 12705 | -5/Hub_04(d) | Destroyed 8 combat bots 12964 | -5/Hub_04(d) | Entered Factory 12964 | -4/Factory | Evolved 2 slots: Utility x2 13764 | -4/Factory | Identified exit to Garrison 13764 | -4/Factory | Entered Garrison 13820 | -4/Garrison | Triggered checkpoint 13824 | -4/Garrison | Garrison Relay disabled 13930 | -4/Garrison | Spotted B-86 Titan 13932 | -4/Garrison | Warlord forces raided the area 13950 | -4/Garrison | Destroyed B-86 Titan 13961 | -4/Garrison | Spotted B-86 Titan 13971 | -4/Garrison | Destroyed B-86 Titan 14018 | -4/Garrison | Triggered checkpoint 14047 | -4/Garrison | Triggered checkpoint 14050 | -4/Garrison | Triggered checkpoint 14069 | -4/Garrison | Found Unknown Protection 14069 | -4/Garrison | Identified Adv. Powered Armor 14072 | -4/Garrison | Found Adv. Powered Armor 14077 | -4/Garrison | Found Adv. Powered Armor 14176 | -4/Garrison | Triggered checkpoint 14257 | -4/Garrison | Spotted B-86 Titan 14269 | -4/Garrison | Destroyed B-86 Titan 14280 | -4/Garrison | Spotted B-86 Titan 14349 | -4/Garrison | Destroyed B-86 Titan 14502 | -4/Garrison | Build established: Construct 14576 | -4/Garrison | Discovered new exit (range 10) 14726 | -4/Garrison | Attempted to access garrison exit controls, blocked by remote lockdown 14862 | -4/Garrison | Triggered checkpoint 14880 | -4/Garrison | Discovered new exit (range 15) 14980 | -4/Garrison | Triggered checkpoint 15016 | -4/Garrison | Spotted Executioner 15020 | -4/Garrison | Destroyed Executioner 15037 | -4/Garrison | Lost 3 allies 15076 | -4/Garrison | Found Prototype Processor 15076 | -4/Garrison | Identified Exp. Core Analyzer 15110 | -4/Garrison | Spotted Executioner 15121 | -4/Garrison | Destroyed Executioner 15127 | -4/Garrison | Found Prototype Processor 15145 | -4/Garrison | Found Exp. Core Analyzer 15440 | -4/Garrison | Triggered checkpoint 15492 | -4/Garrison | Garrison Relay disabled 15696 | -4/Garrison | Triggered checkpoint 15698 | -4/Garrison | Garrison Relay disabled 15738 | -4/Garrison | Discovered new exit (range 5) 15934 | -4/Garrison | Triggered checkpoint 16123 | -4/Garrison | Spotted B-86 Titan 16133 | -4/Garrison | Installed Relay Interface Framework 16158 | -4/Garrison | Destroyed B-86 Titan 16372 | -4/Garrison | Entered Factory 16475 | -4/Factory | Identified exit to Upper Caves 16628 | -4/Factory | Identified Exp. Targeting Computer 16869 | -4/Factory | Entered Upper Caves 17186 | -4/Upper Caves | Learned location of Testing (-2) 17215 | -4/Upper Caves | Discovered new exit (range 10) 17242 | -4/Upper Caves | Entered another Upper Caves area 17242 | -4/Upper Caves | Accompanied by 3 allies 17251 | -4/Upper Caves | Discovered new exit (range 8) 17661 | -4/Upper Caves | Discovered new exit (range 10) 17670 | -4/Upper Caves | Entered Zhirov 17670 | -4/Zhirov | Discovered new exit (range 3) 17689 | -4/Zhirov | Met Zhirov 17714 | -4/Zhirov | Found Alien Artifact 17714 | -4/Zhirov | Identified Integrated Reactor 17714 | -4/Zhirov | Installed Integrated Reactor, increased core energy generation (+10) 17730 | -4/Zhirov | Found Alien Artifact 17802 | -4/Zhirov | Learned location of Quarantine (-3) 17802 | -4/Zhirov | Learned location of Command (-1) 17808 | -4/Zhirov | Zhirov requested help retrieving the SGEMP Prototype 17839 | -4/Zhirov | Entered Proximity Caves 18208 | -3/Proximity Caves | Discovered new exit (range 16) 18472 | -3/Proximity Caves | Entered Research 18472 | -3/Research | Accompanied by 2 allies 18472 | -3/Research | Evolved 2 slots: Utility x1, Weapon x1 18534 | -3/Research | Spotted B-86 Titan 18551 | -3/Research | Destroyed B-86 Titan 18662 | -3/Research | Identified exit to Armory 18662 | -3/Research | Identified exit to Quarantine 18672 | -3/Research | Revision forces began assault on 0b10 18694 | -3/Research | Met up with Revision 17++ 18921 | -3/Research | Found Prototype Processor 18921 | -3/Research | Identified Spectral Analyzer 19063 | -3/Research | Entered Armory 19198 | -3/Armory | Fabricated H-66 Slayer (x2) 19275 | -3/Armory | Fabricated H-66 Slayer (x2) 19352 | -3/Armory | Fabricated H-66 Slayer (x2) 19429 | -3/Armory | Fabricated H-66 Slayer (x2) 19572 | -3/Armory | Build established: Commander-Construct 19603 | -3/Armory | Fabricated H-66 Slayer? 19683 | -3/Armory | Fabricated H-66 Slayer (x2) 19791 | -3/Armory | Fabricated Assault Drone Bay (x1) 19813 | -3/Armory | First assault squad dispatched 19984 | -3/Armory | Lost 3 allies 20064 | -3/Armory | Identified Transdimensional Reconstructor 20064 | -3/Armory | Warped through subspace to slip node 20064 | -3/Armory | Discovered new exit (range 1) 20237 | -3/Armory | Found Quantum Capacitor 20406 | -3/Armory | Build established: Construct 20772 | -3/Armory | Entered Lab 20772 | -3/Lab | Discovered new exit (range 9) 20792 | -3/Lab | Hidden lab's door opened automatically 20792 | -3/Lab | Sensor layout match revealed 20793 | -3/Lab | Gained access to the hidden lab's interior 20907 | -3/Lab | Unable to decrypt terminal 20921 | -3/Lab | Found Prototype Energy Gun 20921 | -3/Lab | Identified Tachyon Dispersion Ray 20938 | -3/Lab | Found Tachyon Dispersion Ray 20951 | -3/Lab | Found Prototype Protection 20951 | -3/Lab | Identified Med. Regenerative Plating 20968 | -3/Lab | Found Prototype Hackware 20997 | -3/Lab | Found Integrated Reactor 20997 | -3/Lab | Installed Integrated Reactor, increased core energy generation (+10) 21008 | -3/Lab | Found Alien Artifact 21008 | -3/Lab | Identified Core Regenerator 21008 | -3/Lab | Used Core Regenerator, restored core integrity (+264) 21037 | -3/Lab | Detected by scanners 21072 | -3/Lab | Confronted by A5 21128 | -3/Lab | Found Transdimensional Reconstructor 21139 | -3/Lab | Disabled Active System Cloaker 21145 | -3/Lab | MAIN.C forces arrive to investigate 21149 | -3/Lab | Entered Research 21149 | -2/Research | Evolved 2 slots: Utility x2 21203 | -2/Research | Identified Quantum Router 21314 | -2/Research | Identified exit to Garrison 21314 | -2/Research | Entered Garrison 21374 | -2/Garrison | Phase Generator disabled 21404 | -2/Garrison | Rewired Striker 21418 | -2/Garrison | Rewired Striker 21479 | -2/Garrison | Rescued a captive Derelict 21496 | -2/Garrison | Triggered checkpoint 21504 | -2/Garrison | Build established: Hacker-Construct 21544 | -2/Garrison | Triggered checkpoint 21547 | -2/Garrison | Spotted B-90 Cyclops 21557 | -2/Garrison | Triggered checkpoint 21558 | -2/Garrison | Destroyed B-90 Cyclops 21579 | -2/Garrison | Destroyed 14 combat bots 21620 | -2/Garrison | Triggered checkpoint 21627 | -2/Garrison | Discovered new exit (range 22) 21726 | -2/Garrison | Expanded RIF knowledge: Watcher Feeds 21868 | -2/Garrison | Discovered new exit (range 14) 21974 | -2/Garrison | Destroyed 8 combat bots 22005 | -2/Garrison | Build established: Scavenger-Construct 22014 | -2/Garrison | Triggered checkpoint 22072 | -2/Garrison | Entered Research 22617 | -2/Research | Lost 4 parts (2p1u1w) 22680 | -2/Research | Intercept squad dispatched 22710 | -2/Research | Spotted Tracker 22711 | -2/Research | Spotted Tracker 22721 | -2/Research | Destroyed Tracker 22732 | -2/Research | Spotted Combat Programmer 22738 | -2/Research | System corruption reached 10% 22751 | -2/Research | Destroyed Tracker 22772 | -2/Research | Spotted Combat Programmer 22776 | -2/Research | Destroyed Combat Programmer 22783 | -2/Research | Destroyed Combat Programmer 22789 | -2/Research | Found Prototype Device 22789 | -2/Research | Identified Exp. Phase Shifter 22792 | -2/Research | Found Prototype Energy Gun 22803 | -2/Research | Lost 7 parts (1p1n2u3w) 22865 | -2/Research | Build established: Scavenger-Gunner 23015 | -2/Research | Lost 3 parts (1p1u1w) 23072 | -2/Research | First assault squad dispatched 23154 | -2/Research | Spotted B-90 Cyclops 23168 | -2/Research | Destroyed B-90 Cyclops 23307 | -2/Research | Identified exit to Garrison 23307 | -2/Research | Entered Garrison 23357 | -2/Garrison | Triggered checkpoint 23399 | -2/Garrison | Destroyed 7 combat bots 23614 | -2/Garrison | System corruption reached 30% 23628 | -2/Garrison | Garrison Relay disabled 23665 | -2/Garrison | Build established: Scavenger-Mutant 23681 | -2/Garrison | Lost 3 parts (3u) 23718 | -2/Garrison | Expanded RIF knowledge: Program Shield 23844 | -2/Garrison | Found embedded Infiltrators 24042 | -2/Garrison | Spotted B-90 Cyclops 24057 | -2/Garrison | Triggered checkpoint 24066 | -2/Garrison | Allies destroyed B-90 Cyclops 24073 | -2/Garrison | Triggered checkpoint 24091 | -2/Garrison | Triggered checkpoint 24097 | -2/Garrison | Triggered checkpoint 24192 | -2/Garrison | Destroyed 7 combat bots 24233 | -2/Garrison | Spotted B-75 Beast 24311 | -2/Garrison | Build established: Scavenger-Gunner 24376 | -2/Garrison | Discovered new exit (range 12) 24427 | -2/Garrison | Triggered checkpoint 24725 | -2/Garrison | Triggered checkpoint 24828 | -2/Garrison | Discovered new exit (range 14) 25062 | -2/Garrison | Identified Immobilizer 25109 | -2/Garrison | Triggered checkpoint 25167 | -2/Garrison | Discovered new exit (range 15) 25280 | -2/Garrison | Destroyed 7 combat bots 25488 | -2/Garrison | Garrison Relay disabled 25500 | -2/Garrison | Build established: Scavenger-Construct 25533 | -2/Garrison | Triggered checkpoint 25592 | -2/Garrison | Expanded RIF knowledge: Structural Interface 25643 | -2/Garrison | Triggered checkpoint 26004 | -2/Garrison | Entered Access 26004 | -1/Access | Evolved 2 slots: Utility x2 26364 | -1/Access | High security lockdown imminent 26444 | -1/Access | High security lockdown engaged 26464 | -1/Access | Found Prototype Launcher 26467 | -1/Access | Intercept squad dispatched 26481 | -1/Access | Spotted Tracker 26481 | -1/Access | Spotted Tracker 26490 | -1/Access | Identified Point Singularity Launcher 26493 | -1/Access | Destroyed Tracker 26504 | -1/Access | Found Point Singularity Launcher 26510 | -1/Access | Spotted Combat Programmer 26513 | -1/Access | Warped through subspace 26552 | -1/Access | Destroyed 7 combat bots 26554 | -1/Access | Lost 5 parts (1p2u2w) 26611 | -1/Access | Spotted Combat Programmer 26626 | -1/Access | Spotted Striker 26626 | -1/Access | Spotted Striker 26626 | -1/Access | Spotted Striker 26674 | -1/Access | System corruption reached 10% 26675 | -1/Access | Core integrity fell below 50% 26718 | -1/Access | Lost 12 parts (4n7u1w) 26734 | -1/Access | Core integrity fell below 20% 26752 | -1/Access | Destroyed by G-73 Enforcer with Heavy Laser Last Messages --------------- 26707_ Penetrated by EMDS Slug. 26714_ System corrupted: Matter fused (-8). 26714_ ALERT: Heavy assault forces dispatched. 26719_ Penetrated by EMDS Slug. 26724_ EMDS Slug penetrates U-05 Engineer. 26724_ U-05 Engineer destroyed. 26727_ K-01 Serf collects debris. 26728_ EMDS Slug penetrates Wall. 26729_ 6O&X 26730_ Penetrated by EMDS Slug. 26732_ Myomer-Heavy Exoskeleton destroyed. 26732_ Scrap Engine damaged due to network destabilization (-7). 26733_ Penetrated by EMDS Slug. 26747_ Scrap Engine destroyed. 26749_ Penetrated by EMDS Slug. 26751_ Critical hit (Burn: +37). 26751_ Slammed into G-73 Enforcer. 26751_ EMDS Slug penetrates R-10 Processor. 26752_ Combat Programmer resets R-10 Processor, system corruption cleaned. [Achievement: Superachiever] Map ----- +----------------------------------------------------+ | ???????????????????????# + #???????? | | ???????????????????????# # #???????? | | ???????????????????????## ##? #???????? | | ????????????????????????# #??? ! #???????? | | ????????????????????????# #????##########???????? | | ????????????????????????# #?????????????????????? | | ????????????????????????# #?????????????????????? | | ???????????????#######??# #?????????????????????? | | ???????????????# [?# #?????????????????????? | | ???????????????# ?# #?????????????????????? | | ???????????????# # #?????????????????????? | | ???????????????# # #?????????????????????? | | ???????????????# ! + R#?????????????????????? | | ???????????????# #pu#?????????????????????? | | ???????????????# # #?????????????????????? | | ???????????????# = ?# u#?????????????????????? | | ???????????????# ?# p#?????????????????????? | | ???????????????#######??# #?????????????????????? | | ????????????????????????#R #?????????????????????? | | ????????????????????????# #?????????????????????? | | ????????????????????????# g#?????????????????????? | | ????????????????????????# K#?????????????????????? | | ????????????????????????#w #?????????????????????? | | ????????????????????????# #?????????????????????? | | ????????????????????????# #?????????????????????? | | ????????????????????????#@g#?????????????????????? | | ????????????????????????#g #?????????????????????? | | ????????????????????????#g #?????????????????????? | | ????????????????????????# #?????????????????????? | | ????????????????????????# #?????????????????????? | | ????????????????????????# #?????????????????????? | | ????????????????????????# #?????????????????????? | | ????????????????????????# #?????????????????????? | | ???????????????????????? #?????????????????????? | | ????????????????????????# #?????????????????????? | | ????????????????????????? #?????????????????????? | | ????????????????????????? R#?????????????????????? | | ?????????????????????????kk#?????????????????????? | | ????????????????????????? ??????????????????????? | | ????????????????????????? ??????????????????????? | | ????????????????????????? ??????????????????????? | | ?????????????????????????????????????????????????? | | ?????????????????????????????????????????????????? | | ?????????????????????????????????????????????????? | | ?????????????????????????????????????????????????? | | ?????????????????????????????????????????????????? | | ?????????????????????????????????????????????????? | | ?????????????????????????????????????????????????? | | ?????????????????????????????????????????????????? | | ?????????????????????????????????????????????????? | +----------------------------------------------------+ Best States ------------- Heat Dissipation 147 Coolant Potential 80 Energy Generation 66 Energy Capacity 948 Matter Stores 420 Matter Capacity 600 Sight Range 24 Robot Scan Range 18 Terrain Scan Density 10 Jamming Range 16 Cloak Strength 3 Base Temperature (-) 200 Armor Coverage 800 Resistance: TH 20 Weapon Cycling 25 Phase Shifting 20 Evasion (%) 55 Targeting Accuracy 12 Core Analysis 12 Armor Integrity Analysis 30 Recoil Reduction 5 Offensive Hacking 26 Defensive Hacking 25 Authchip Count 3 Item Schematics ----------------- Combat Drone Bay | -6/Data Miner | Free Lgt. Regenerative Plating | -6/Data Miner | Free Enh. Armored Leg | -6/Data Miner | Free Hvy. Proton Cannon | -6/Data Miner | Free Shield Leg | -6/Data Miner | Free Hvy. Gauss Cannon | -6/Data Miner | Free Prc. Energy Filter | -6/Data Miner | Free Adv. Hardlight Generator | -6/Data Miner | Free Adv. Remote Datajack | -6/Data Miner | Free Lgt. Antimatter Reactor | -6/Data Miner | Free Assault Drone Bay | -4/Zhirov | Free Exp. Heat Sink | -4/Zhirov | Free Exp. Optical Array | -4/Zhirov | Free Imp. Arc Thrower | -4/Zhirov | Free Robot Schematics ------------------ B-60 Warrior | -6/Data Miner | Free A-15 Conveyor | -6/Data Miner | Free H-66 Slayer | -6/Data Miner | Free B-48 Gladiator | -6/Data Miner | Free Fabricated ------------ H-66 Slayer | x2 | -3/Armory | Authchip H-66 Slayer | x2 | -3/Armory | Authchip H-66 Slayer | x2 | -3/Armory | Authchip H-66 Slayer | x2 | -3/Armory | Authchip H-66 Slayer | x2 | -3/Armory | Authchip H-66 Slayer | x2 | -3/Armory | Authchip Assault Drone Bay | x1 | -3/Armory | Authchip Repaired ---------- Nothing Alien Tech Used ----------------- Integrated Reactor Transdimensional Reconstructor Core Regenerator Achievements -------------- Superachiever War Machine Challenges ------------ None Game ------ Seed ThermoelectricFactoryEngine Manual? 0 Play Time 03:35:05 Cumulative 347.3 hours Start 2025.07.13 @ 21:29:19 End 2025.07.15 @ 00:02:22 Sessions 5 Manual Loads 0 Difficulty Rogue Special Mode None Game No. 333 Rogue 297 Adventurer 36 Explorer 0 Win Type - Total 13 Types 5/0/8/0/0/0/0/0/0/0 Lore% 70 Gallery% 82 Achievement% 75 Wizard Run 0 Options --------- Layout 0 ASCII 0 Keyboard 0 Movement Mouse Keybinds 0 Fullscreen 1 Font 18/SmallcapsGlow Map View 76x50 Zoom Use 0% Tactical HUD 1 Map Filters NONE Filters SHIFT_HUE(315) Steam 1 RUN: c329ba83-a133-4fe3-8005-91d73651234b